Cogmind - Beta 17 @@@ ROGUE MODE // 2026.08.25 @ 07:48:54 Player: Dadrick Result: Escaped! Performance ------------- Evolutions (9) 4500 Regions Visited (29) 5800 Robots Destroyed (372) 1860 Value Destroyed (16569) 16569 Prototype IDs (42) 840 Alien Tech Used (1) 200 Bonus (36713) 36713 TOTAL SCORE: 66482 Bonus ------- High Alert Combat Kills 1811 Follower Combat Kills 3156 Prayed to X0-1V1 5000 Major X0-1V1 Interference 17350 Subatomizer Sterilization 3000 Entered Garrisons 1000 Used RIF Installer 2500 Network Hubs Disabled 400 Met Zhirov 300 Built Enhanced Grunts 300 Met R17 at Cetus 500 Met R17 at Research 2000 Win 3000 Friendly Fire -3604 Cogmind --------- Core Integrity 1216/1365 Matter 117/300 Energy 266/290 System Corruption 3% Temperature Hot (264) Movement Hovering (42) Location To Epsilon Eridani Parts ------- > --- POWER (3) -------- Light Antimatter Reactor Light Antimatter Reactor Micro Antimatter Reactor > --- PROPULSION (8) --- Improved Gyrokinetic Inverter Improved Gyrokinetic Inverter (fused) Improved Gyrokinetic Inverter Improved Gyrokinetic Inverter Combat Antigrav System Combat Linear Gravjet Combat Linear Gravjet Combat Linear Gravjet > --- UTILITY (11) ----- Large Storage Unit Enhanced Optical Array Long-range Sensor Array Advanced Signal Interpreter ECM Suite SHELL Armor Relay Coupler [NC] (12) Relay Coupler [Grunt] (73) X0-1V1's Piety Tracker > --- WEAPON (3) ------- Enhanced Nova Cannon Railgun Nanosword > --- INVENTORY (16) --- Light Antimatter Reactor Combat Linear Gravjet Advanced Sensor Array Advanced Weapon Cycler Advanced Reaction Control System Graphene Brace Advanced Force Field Advanced Point Defense System Transdimensional Reconstructor Long-range Proton Cannon Heavy Machine Gun Railgun Enhanced Hardcell Cannon Compact Tesla Bomb Launcher Advanced Remote Datajack Nanosword Peak State ------------ > --- POWER ------------ Light Antimatter Reactor Light Antimatter Reactor Micro Antimatter Reactor > --- PROPULSION ------- Improved Gyrokinetic Inverter Improved Gyrokinetic Inverter Improved Gyrokinetic Inverter Improved Gyrokinetic Inverter Combat Antigrav System Combat Linear Gravjet Combat Linear Gravjet Combat Linear Gravjet > --- UTILITY ---------- Large Storage Unit Enhanced Optical Array Long-range Sensor Array Advanced Signal Interpreter ECM Suite SHELL Armor Relay Coupler [NC] Relay Coupler [Grunt] X0-1V1's Piety Tracker > --- WEAPON ----------- Enhanced Nova Cannon Railgun Nanosword > --- INVENTORY -------- Light Antimatter Reactor Combat Linear Gravjet Advanced Sensor Array Advanced Weapon Cycler Advanced Reaction Control System Graphene Brace Advanced Force Field Advanced Point Defense System Transdimensional Reconstructor Long-range Proton Cannon Heavy Machine Gun Railgun Enhanced Hardcell Cannon Compact Tesla Bomb Launcher Advanced Remote Datajack Nanosword [Rating: 188] Favorites ----------- Power Improved Deuterium Engine Engine Improved Deuterium Engine Power Core Light Nuclear Core Reactor Heavy Antimatter Reactor Propulsion Armored Treads Treads Armored Treads Leg Carbon-fiber Leg Wheel Armored Huge Wheel Hover Unit Improved Gyrokinetic Inverter Flight Unit VTOL Module Utility X0-1V1's Piety Tracker Device X0-1V1's Piety Tracker Storage High-capacity Storage Unit Processor Advanced Targeting Computer Hackware Relay Coupler [Grunt] Protection Centrium Medium Armor Plating Weapon Gauss Rifle Energy Gun Precision Beam Rifle Energy Cannon Heavy Plasma Cannon Ballistic Gun Gauss Rifle Ballistic Cannon Linear Accelerator Launcher Shock Bomb Launcher Special Weapon Remote Datajack Impact Weapon Great Maul Slashing Weapon Katana Piercing Weapon Force Lance Build | -11 -10 -9 -9 -8 -8 -8 -8 -7 -7 -7 -7 -6 -6 -6 -6 -6 -6 -5 -5 -5 -5 -4 -4 -4 -4 -3 -3 -2 -1 ------- Run | Yrd Mat Mat Min Mat Gar Mat Gar Fac Gar Fac Gar Fac Ext Cet Arc Hub Gar Fac Upp Upp Zhi Pro Fac Was Fac Res Tes Res Acc Slots Evolved 18 | . . 2 . 2 . . . 2 . . . 2 . . . . . 2 . . . . 2 . . 2 . 2 2 Power 1 | . . . . . . . . . . . . . . . . . . . . . . . . . . . . 1 . Propulsion 6 | . . 1 . . . . . 1 . . . 1 . . . . . . . . . . 1 . . 1 . . 1 Utility 10 | . . . . 2 . . . 1 . . . 1 . . . . . 2 . . . . 1 . . 1 . 1 1 Weapon 1 | . . 1 . . . . . . . . . . . . . . . . . . . . . . . . . . . Parts Attached 305 | 7 13 28 2 9 8 20 12 5 8 11 11 10 20 12 . . 18 16 2 5 7 8 12 1 6 19 15 8 12 Power 37 | 1 2 3 . 1 . 5 1 . 3 1 1 1 2 2 . . 1 2 . . 1 . . . 2 3 1 2 2 Engine 14 | 1 1 3 . . . 1 1 . 2 1 1 . 2 . . . 1 . . . . . . . . . . . . Core 9 | . 1 . . 1 . 4 . . 1 . . . . . . . . 1 . . . . . . 1 . . . . Reactor 14 | . . . . . . . . . . . . 1 . 2 . . . 1 . . 1 . . . 1 3 1 2 2 Propulsion 74 | 2 1 9 . 1 . 2 4 4 . 2 3 1 5 3 . . 6 6 . 1 3 . 4 . 2 6 2 2 5 Treads 37 | 2 1 9 . 1 . 2 4 . . 2 1 1 2 3 . . 3 6 . . . . . . . . . . . Leg 4 | . . . . . . . . 1 . . . . . . . . 3 . . . . . . . . . . . . Wheel 8 | . . . . . . . . 3 . . 2 . 3 . . . . . . . . . . . . . . . . Hover 24 | . . . . . . . . . . . . . . . . . . . . . 3 . 4 . 2 6 2 2 5 Flight 1 | . . . . . . . . . . . . . . . . . . . . 1 . . . . . . . . . Utility 114 | 2 5 9 . 5 4 6 3 . 3 4 7 7 6 5 . . 9 4 2 2 3 6 6 . 1 6 5 3 1 Device 59 | 1 2 4 . 3 2 5 2 . 2 . 4 5 2 . . . 6 2 1 1 1 6 1 . 1 5 1 2 . Storage 10 | 1 2 2 . 1 . . . . . 2 . . . . . . . . . . . . 1 . . . 1 . . Processor 7 | . . . . 1 . . . . . . . 1 . . . . 1 1 . . . . 2 . . . 1 . . Hackware 13 | . . . . . 1 . . . . 1 3 . 3 . . . 1 1 . . 1 . . . . . 1 . 1 Protection 25 | . 1 3 . . 1 1 1 . 1 1 . 1 1 5 . . 1 . 1 1 1 . 2 . . 1 1 1 . Artifact . | . . . . . . . . . . . . . . . . . . . . . . . . . . . . . . Weapon 80 | 2 5 7 2 2 4 7 4 1 2 4 . 1 7 2 . . 2 4 . 2 . 2 2 1 1 4 7 1 4 Energy Gun 13 | . 1 . . 1 3 2 . . . . . . . . . . . 2 . 1 . 1 . . . . 2 . . Energy Cannon 8 | . . . . . . . . . . . . 1 1 . . . 1 1 . . . . 1 1 . . 1 . 1 Ballistic Gun 38 | 2 2 6 2 . . 4 4 1 2 2 . . 4 2 . . 1 . . 1 . . . . . . 2 1 2 Ballistic Cannon 2 | . 1 . . . . . . . . . . . . . . . . . . . . . . . . 1 . . . Launcher 4 | . . 1 . . . 1 . . . 1 . . . . . . . . . . . . . . . 1 . . . Special Weapon 5 | . 1 . . . . . . . . 1 . . 1 . . . . 1 . . . . . . . . 1 . . Impact Weapon 2 | . . . . 1 . . . . . . . . . . . . . . . . . 1 . . . . . . . Slashing Weapon 6 | . . . . . 1 . . . . . . . 1 . . . . . . . . . 1 . . 1 1 . 1 Piercing Weapon 2 | . . . . . . . . . . . . . . . . . . . . . . . . . 1 1 . . . Special Melee Weapon . | . . . . . . . . . . . . . . . . . . . . . . . . . . . . . . Unidentified Prototypes 30 | . 1 1 . 1 . 1 . . . . 1 2 . 4 . . 3 2 . . 3 . 3 . . 1 6 1 . Corrupted Parts 3 | . . . 1 . . . . . . . . . . . . . . 1 . . . . 1 . . . . . . System Corruption 14 | . . . 1 . . . . . . . . . . . . . . 3 . . . . 10 . . . . . . Parts Lost 111 | . 4 8 1 3 3 5 7 . 4 . 5 . 9 1 . . 8 22 . 1 . . 5 . 10 1 5 6 3 Power 20 | . 2 1 . . . 3 1 . 2 . 1 . . . . . 1 4 . . . . 1 . 1 . . 2 1 Propulsion 33 | . . 3 . 1 . 2 2 . . . 1 . 3 . . . 3 8 . . . . 1 . 4 1 1 2 1 Utility 27 | . 2 1 . 1 . . . . 2 . 1 . 4 . . . 3 4 . 1 . . 1 . 3 . 3 1 . Weapon 31 | . . 3 1 1 3 . 4 . . . 2 . 2 1 . . 1 6 . . . . 2 . 2 . 1 1 1 Highest Loss Streak 12 | . 1 8 1 2 2 2 4 . 2 . 3 . 6 1 . . 4 12 . 1 . . 2 . 7 1 2 3 2 To Critical Strikes . | . . . . . . . . . . . . . . . . . . . . . . . . . . . . . . Average Backups 17 | 1 12 17 19 20 20 20 19 20 20 19 19 18 18 19 18 19 19 18 6 4 5 5 8 14 13 14 15 15 15 Power . | . . 1 1 2 1 . . . . . . . . 1 1 1 1 . . . . . 1 2 1 . 1 . . Propulsion 2 | . 3 4 3 2 2 2 2 3 2 2 2 2 2 3 2 2 1 . . . . . . . . 1 1 1 . Utility 7 | . 3 4 8 7 10 9 8 9 10 10 10 10 8 7 8 8 9 8 4 3 3 3 5 6 6 5 7 5 5 Weapon 5 | . 4 7 6 7 5 6 7 5 5 5 4 4 5 5 5 6 5 5 2 1 1 . 1 3 3 4 4 4 5 Tool/Special . | . . . . . . . . . . . . . . . . . . . . . . . . . . . . . . Unused Backups 74 | . 3 5 1 7 2 4 1 3 4 2 3 1 2 5 . . 1 11 . . . 2 . . . 7 2 . 8 Power 9 | . . . 1 1 1 1 . . . . . . 1 . . . . 1 . . . 1 . . . 1 . . 1 Propulsion 19 | . 1 3 . 2 . 2 1 2 1 . 1 . . 3 . . . 1 . . . . . . . 1 . . 1 Utility 25 | . 1 . . 1 1 1 . 1 1 1 2 1 . 2 . . 1 5 . . . 1 . . . 1 2 . 3 Weapon 17 | . 1 2 . 3 . . . . 2 . . . 1 . . . . 3 . . . . . . . 3 . . 2 Tool/Special 4 | . . . . . . . . . . 1 . . . . . . . 1 . . . . . . . 1 . . 1 Average Slot Usage (%) 88 | . 99 96 99 98 96 92 97 85 91 91 86 84 86 83 80 80 81 85 6 15 48 79 88 90 86 90 97 87 87 Engine 6 | . 7 8 11 8 . . 12 15 12 14 14 10 5 5 . . 2 3 . . . . 2 . . . . . . Core 2 | . 6 1 . . 9 14 4 . 1 . . . . . . . . 1 . . . . . . . 1 . . . Reactor 2 | . . . . . . . . . . . . 1 5 6 13 13 9 4 . . . 5 5 5 4 6 9 9 8 Treads 16 | . 28 31 33 26 26 23 23 16 15 14 10 11 14 22 20 20 16 17 . . . . . . . . . . . Wheel 1 | . . . . . . . . 6 7 7 6 6 5 . . . . . . . . . . . . . . . . Hover 5 | . . . . . . . . . . . . . . . . . . . . . 14 17 21 31 29 30 32 29 31 Device 10 | . 6 8 11 12 9 7 7 7 6 10 9 16 9 8 6 13 10 8 3 9 11 26 17 15 13 18 14 9 13 Storage 6 | . 14 11 11 9 9 7 9 7 7 7 7 6 5 6 6 6 6 4 . . . . 2 5 5 4 4 4 4 Processor 6 | . . . . 8 9 7 9 7 7 7 7 6 5 6 6 6 6 10 . . . . 6 10 10 9 9 8 8 Hackware 2 | . . . . . . . . . . 1 6 6 8 . . . . 4 . . 4 5 5 5 5 4 4 6 6 Protection 4 | . 7 1 . 4 5 . 1 . 6 2 1 2 5 13 13 6 7 3 2 1 4 5 8 5 3 2 6 3 4 Energy Gun 3 | . 7 5 8 . 19 14 . . . . . . . . . . . . . . 3 5 6 1 . . 3 . . Ballistic Gun 12 | . 17 25 24 25 4 13 26 23 17 17 16 11 7 10 12 6 10 8 . 1 . . . . . . . 9 8 Slashing Weapon 1 | . . . . . 2 . 2 . 4 4 1 . 1 . . 5 . 2 . . . . 2 5 4 1 . 2 3 Peak Build Rating 188 | 7 22 35 36 43 47 54 43 47 59 63 71 88 102 124 126 120 129 110 19 39 72 90 124 124 128 148 158 183 188 Average Rating 71 | 5 9 23 35 40 44 44 39 44 53 59 64 78 87 102 125 118 109 95 15 23 56 81 103 120 117 132 148 170 177 On Entrance 70 | . 7 22 35 35 43 45 40 39 47 58 60 69 86 89 124 126 118 95 3 19 22 72 89 121 119 76 144 146 158 Avg Prop Armor Cover (%) 10 | . . . . . . . . 14 12 14 13 18 18 . . . 5 3 . . 10 3 2 . 6 . . . 1 Naked Turns 25 | . . . . . . . . . . . . . . . . . . 4 21 . . . . . . . . . . Heaviest Build 117 | 12 31 58 58 64 59 64 66 61 81 86 81 93 103 97 99 91 112 94 3 10 27 34 68 65 66 85 78 117 108 Greatest Support 235 | 40 40 63 60 60 60 65 66 63 43 56 28 28 177 230 230 230 235 154 3 4 33 48 78 81 86 92 96 96 110 Greatest Overweight (x) 8 | . . 1 . 1 . 1 1 5 2 3 2 3 8 . . . 1 2 . 3 2 1 1 . 1 1 . 1 . Average Overweight (x) . | . . . . . . . . 1 1 2 2 2 2 . . . . . . . . . . . . . . . . Largest Inventory Capacity 26 | 8 15 20 21 21 21 21 21 21 21 26 21 21 21 21 21 21 21 21 6 6 6 6 16 16 16 16 26 16 16 Average Capacity 18 | 7 14 19 20 21 21 21 21 21 21 21 21 21 21 21 21 21 21 20 6 6 6 6 11 16 16 16 16 16 16 Most Carried 21 | 3 15 20 20 21 21 21 21 21 21 21 21 21 21 21 21 21 21 21 6 6 6 6 16 16 16 16 16 16 16 Average Carried 17 | 1 12 17 19 20 20 20 19 20 20 20 20 20 19 20 20 21 20 19 6 4 5 5 9 15 15 15 15 15 15 Final Capacity 21 | 8 15 20 21 21 21 21 21 21 21 21 21 21 21 21 21 21 21 6 6 6 6 6 16 16 16 16 16 16 16 Final Carried 21 | 3 13 20 19 21 21 20 21 21 21 21 21 21 20 21 21 21 21 6 6 5 5 6 16 16 15 16 16 15 16 Class Distribution -------------------- 18% | Gunner 15% | Scavenger-Mutant 15% | Mutant 9% | Botlord-Mutant 9% | Bothacker-Mutant 7% | Scavenger-Gunner 5% | Ninja 4% | Scavenger-Tank 4% | Scout 3% | Bothacker-Gunner Dominant Class ---------------- Mutant | -10/Materials Scavenger-Gunner | -9/Materials Gunner | -9/Mines Gunner | -8/Materials Gunner | -8/Garrison Gunner | -8/Materials Gunner | -8/Garrison Scavenger-Gunner | -7/Factory Scavenger-Mutant | -7/Garrison Bothacker-Mutant | -7/Factory Bothacker-Mutant | -7/Garrison Botlord-Mutant | -6/Factory Botlord-Mutant | -6/Extension Scavenger-Mutant | -6/Cetus Scavenger-Mutant | -6/Archives Scavenger-Mutant | -6/Hub_04(d) Scavenger-Mutant | -6/Garrison Scavenger-Mutant | -5/Factory Mutant | -5/Upper Caves Mutant | -5/Upper Caves Mutant | -5/Zhirov Mutant | -4/Proximity Caves Mutant | -4/Factory Ninja | -4/Waste Ninja | -4/Factory Scout | -3/Research Ninja | -3/Testing Tank | -2/Research Scientist-Ninja | -1/Access Resources | -11 -10 -9 -9 -8 -8 -8 -8 -7 -7 -7 -7 -6 -6 -6 -6 -6 -6 -5 -5 -5 -5 -4 -4 -4 -4 -3 -3 -2 -1 ----------- Run | Yrd Mat Mat Min Mat Gar Mat Gar Fac Gar Fac Gar Fac Ext Cet Arc Hub Gar Fac Upp Upp Zhi Pro Fac Was Fac Res Tes Res Acc Matter Collected 11737 | 198 511 786 114 865 169 829 608 25 550 313 1023 236 1389 294 66 . 699 748 12 72 235 171 273 . 16 486 539 304 206 Remotely 20 | . . . . . . . . . . . . 20 . . . . . . . . . . . . . . . . . Salvage Created 17086 | 87 616 1301 335 1245 447 1992 658 25 975 425 1350 305 1207 197 80 . 1155 1378 . 73 235 79 338 . 16 818 626 715 408 Parts 844 | 9 43 92 18 64 22 73 50 4 43 23 73 11 53 11 2 . 46 56 . 4 4 . 18 . 2 28 32 41 22 Haulers Intercepted 15 | . 1 3 . 2 . 5 . . . . . 1 . . . . . 1 . . . . . . . 1 1 . . Recyclers Shooed 10 | . . 3 . 1 . . . . . . . 2 1 . . . . 1 . . . . 2 . . . . . . Parts Field Recycled . | . . . . . . . . . . . . . . . . . . . . . . . . . . . . . . Retrieved Matter . | . . . . . . . . . . . . . . . . . . . . . . . . . . . . . . Parts Self-Destructed 7 | . . . . . . . . . . . . . . . . . . . . 4 3 . . . . . . . . Prevented 3 | . . . . . . . . . . . . . . . . . . . . . . 3 . . . . . . . Parts Restored . | . . . . . . . . . . . . . . . . . . . . . . . . . . . . . . Kills | -11 -10 -9 -9 -8 -8 -8 -8 -7 -7 -7 -7 -6 -6 -6 -6 -6 -6 -5 -5 -5 -5 -4 -4 -4 -4 -3 -3 -2 -1 ------- Run | Yrd Mat Mat Min Mat Gar Mat Gar Fac Gar Fac Gar Fac Ext Cet Arc Hub Gar Fac Upp Upp Zhi Pro Fac Was Fac Res Tes Res Acc Combat Hostiles Destroyed 282 | . 13 30 6 27 13 28 17 . 20 7 20 1 20 2 1 . 20 28 . 3 . . 4 . . 2 4 9 7 Melee 8 | . . . . . . . . . . . . . . . . . . 2 . . . . 3 . . 1 2 . . Guns 211 | . 13 29 6 22 9 24 17 . 10 5 20 1 16 2 1 . 13 7 . 3 . . . . . . . 7 6 Cannons 16 | . . . . . . . . . . . . . 2 . . . 6 4 . . . . . . . 1 2 . 1 AOE 40 | . . 1 . 5 3 3 . . 9 2 . . 1 . . . . 15 . . . . . . . . . 1 . Classes Destroyed 19 | 2 5 4 . 1 . . 1 . . . . 1 1 . . . 2 1 . . . . . . . . 1 . . Worker 18 | . 1 2 . 1 . . . 1 . . . . . . . . . 2 . . . . 4 . . 2 2 . 3 Builder 12 | . . 1 . 1 . . . . . . . . 1 . . . . 1 . . . . 2 . . 1 2 2 1 Tunneler 4 | 2 1 . . . . . . . . . . . . . . . . . . . . . . . 1 . . . . Hauler 15 | . 1 3 . 2 . 5 . . . . . 1 . . . . . 1 . . . . . . . 1 1 . . Recycler 21 | 1 1 . 1 2 . 5 . . . 1 . 1 . . . . . 2 . . . . 1 . . 4 1 1 . Mechanic 1 | . . . . . . . . . . . . . . . . . . 1 . . . . . . . . . . . Operator 5 | . . . . . . . . . . . . 1 . . . . . 1 . . . . 2 . . 1 . . . Watcher 12 | . 1 5 . 1 . 2 . . . . . . . . . . . . . . . . . . . . 2 . 1 Swarmer 87 | . 3 14 1 8 4 3 5 . 9 2 10 . 1 . . . 1 6 . 3 . . 4 . . 1 3 4 5 Grunt 104 | . 10 7 5 16 4 14 4 . 7 1 2 . 10 . . . 7 17 . . . . . . . . . . . Brawler 5 | . . 1 . . 1 2 . . . . . . . . . . . 1 . . . . . . . . . . . Duelist 11 | . . 1 . 2 1 3 1 . . 1 2 . . . . . . . . . . . . . . . . . . Researcher 1 | . . . . . . . . . . . . . . . . . . . . . . . . . . . 1 . . Sentry 43 | . . 7 . . 3 3 4 . 3 2 3 1 6 . 1 . 6 2 . . . . . . . . 1 . 1 Specialist 2 | . . . . . . . . . . . . . 2 . . . . . . . . . . . . . . . . Hunter 13 | . . . . 1 . 3 1 . 1 . . . 1 . . . 2 2 . . . . . . . . . 2 . Programmer 11 | . . . . . . . 2 . . 1 3 . . . . . . . . . . . . . . 1 . 3 1 Behemoth 2 | . . . . . . . . . . . . . . . . . 2 . . . . . . . . . . . . Cetus Guard 2 | . . . . . . . . . . . . . . 2 . . . . . . . . . . . . . . . Executioner 2 | . . . . . . . . . . . . . . . . . 2 . . . . . . . . . . . . Best Kill Streak 22 | 3 3 7 3 9 4 5 7 1 6 2 6 1 4 1 1 . 5 22 . 3 . . 5 . 1 4 2 8 6 Combat Bots Only 15 | . 3 5 2 6 4 4 7 . 6 2 6 1 4 1 1 . 5 15 . 3 . . 2 . . 2 2 7 6 Max Kills in Single Turn 4 | 1 1 2 1 3 3 2 2 1 3 2 4 1 2 1 1 . 2 4 . 2 . . 1 . 1 1 1 1 1 Gunslinging 2 | . . 1 . 2 . 1 1 . 1 . 1 . 1 . . . 1 . . . . . . . . . . . . Exploded 4 | . . 1 . 2 3 1 . . 3 2 . . 1 . . . . 4 . . . . . . . . . 1 . Melee 1 | . . . . . . . . . . . . . . . . . . 1 . . . . 1 . . 1 1 . . Uniques/NPCs Destroyed 1 | . . . . . . . . . . . . . . 1 . . . . . . . . . . . . . . . A7 (-6/Cetus) Combat | -11 -10 -9 -9 -8 -8 -8 -8 -7 -7 -7 -7 -6 -6 -6 -6 -6 -6 -5 -5 -5 -5 -4 -4 -4 -4 -3 -3 -2 -1 -------- Run | Yrd Mat Mat Min Mat Gar Mat Gar Fac Gar Fac Gar Fac Ext Cet Arc Hub Gar Fac Upp Upp Zhi Pro Fac Was Fac Res Tes Res Acc Hostile Shots Fired 2567 | . 73 164 16 123 40 120 88 . 131 34 132 45 303 25 12 8 265 360 5 35 . 18 76 . 97 27 78 208 84 Missed 820 | . 18 45 2 33 18 31 20 . 50 12 45 18 117 8 3 2 59 113 2 13 . 9 25 . 40 11 35 62 29 Hits 1747 | . 55 119 14 90 22 89 68 . 81 22 87 27 186 17 9 6 206 247 3 22 . 9 51 . 57 16 43 146 55 Melee 17 | . . 5 . 3 . 3 . . . . 2 . . . . . . 4 . . . . . . . . . . . Projectile 1730 | . 55 114 14 87 22 86 68 . 81 22 85 27 186 17 9 6 206 243 3 22 . 9 51 . 57 16 43 146 55 Critical Strikes 43 | . . 6 1 2 . 1 2 . . . 1 . 1 2 . . 8 10 . 1 . . . . 4 2 . 1 1 Actively Blocked 6 | . . . . . . . . . . . . . . . . . . . . . . . . . 4 2 . . . Part Disruptions 1 | . . . . . . . . . . . . . . . . . . . . . . . . . 1 . . . . Damage Taken 27965 | . 656 1496 155 1160 347 1374 950 . 824 391 1043 196 2171 436 245 90 3596 4713 51 329 . 167 1291 . 1211 391 1049 2340 1293 Core 3502 | . 109 145 21 124 15 111 109 . 68 20 130 76 194 . . 19 323 709 51 145 . . 425 . 247 18 124 170 149 Absorbed by Shields 1192 | . . . . 64 . . . . . . . . 12 80 . . 233 . . . . . . . . 24 . 757 22 Reduced by Siege Mode 39 | . . . . . . . . . . . . . 12 . . . 27 . . . . . . . . . . . . Redirected to Shielding 262 | . . . . . . . . . . . . . . . . . . . . . . 54 85 . 59 . 64 . . Ignored by Resistances 313 | . . . . . . 37 . . . . . . . . . . 276 . . . . . . . . . . . . Regen/Repaired (Parts) 1650 | . . . . . . . . . . . . . . . . . . . . . . . 106 . 74 . . 677 793 Core Remaining (%) 60 | 100 56 . 100 . . . 5 . . . 80 . . . . . . . . . . 24 . . 43 . 86 86 89 Volleys Fired 939 | 4 79 90 13 50 30 72 37 3 30 16 81 21 109 15 7 . 75 48 . 34 17 . 13 7 21 7 23 19 18 Largest 5 | 2 2 3 3 3 3 5 3 3 3 3 3 2 4 2 2 . 3 3 . 2 1 . 2 1 1 1 2 3 3 Hottest 231 | 40 100 120 91 74 183 231 74 74 84 84 84 118 195 56 70 . 195 149 . 102 69 . 80 105 105 54 80 105 190 Shots Fired 1985 | 8 145 249 36 136 81 234 99 10 72 36 161 36 195 30 14 . 142 75 . 36 17 1 26 6 26 7 27 39 41 Gun 1696 | 8 139 244 36 129 80 232 94 10 63 32 150 26 134 30 14 . 78 42 . 36 17 1 26 . . . 10 31 34 Cannon 168 | . . . . . . . . . . . . 10 24 . . . 59 16 . . . . . 6 26 7 14 . 6 Launcher 54 | . . 1 . 7 1 2 5 . 9 1 . . 4 . . . . 15 . . . . . . . . 1 8 . Special 67 | . 6 4 . . . . . . . 3 11 . 33 . . . 5 2 . . . . . . . . 2 . 1 Kinetic 1394 | 8 112 201 30 129 14 101 94 10 63 32 150 26 134 30 14 . 78 40 . 34 . . . . . 7 22 31 34 Thermal 445 | . 33 25 . . 66 131 . . . . . 10 24 . . . 59 13 . 2 17 1 26 6 26 . . . 6 Explosive 31 | . . 1 . 7 1 . 5 . 4 1 . . 1 . . . . 11 . . . . . . . . . . . Electromagnetic 58 | . . 22 6 . . 2 . . 5 . . . 3 . . . . 9 . . . . . . . . 3 8 . Robot Hit Streak 31 | 3 16 21 13 24 25 31 17 4 26 9 31 15 18 17 6 . 19 9 . 10 20 . 6 . 3 4 8 12 21 Robot Miss Streak 5 | 1 5 4 5 2 2 5 1 1 2 4 4 3 5 1 2 . 2 2 . 1 1 . 2 . 1 1 1 2 2 Penetration Max 1 | . . . . . . . 1 . 1 . 1 1 1 1 . . 1 1 . 1 . . . . . . . 1 1 Secondary Targets 46 | . 1 7 1 8 1 7 3 . 2 . 4 . 4 1 . . 3 1 . . . . . . . . . 3 . Max Gunslinging Chain 2 | . 1 2 1 2 1 1 1 . 1 . 1 . 1 1 . . 1 1 . . . . . . . . . 1 . Shots Hit Robots 1451 | 5 91 151 24 97 44 162 74 5 70 24 154 24 138 41 10 . 110 59 . 7 16 1 31 . 2 19 30 28 34 Core Hits 708 | 3 35 72 15 61 23 72 30 1 46 12 57 11 51 12 3 . 36 91 . 3 5 . 11 . 1 8 13 18 18 Critical Kills 14 | 1 . . . 2 . 1 . . . . 2 . 1 . . . 5 . . 1 . . . . . . . 1 . Critical Parts Destroyed 18 | . . . . . . 2 . . 1 . 1 . 1 . 3 . 6 1 . 1 . . 1 . . . . 1 . Critical Strikes 64 | 1 . . . 2 4 15 . . 1 . 4 . 2 1 3 . 13 3 . 2 . . 1 . . 6 4 2 . Burn 17 | . . . . . 4 12 . . . . . . . . . . . 1 . . . . . . . . . . . Meltdown 1 | . . . . . . . . . . . . . . . . . 1 . . . . . . . . . . . . Destroy 33 | 1 . . . 2 . 3 . . 1 . 3 . 2 . 3 . 12 2 . 2 . . . . . . . 2 . Blast 2 | . . . . . . . . . . . . . . . . . . . . . . . . . . 1 1 . . Smash 1 | . . . . . . . . . . . . . . . . . . . . . . . 1 . . . . . . Sever 2 | . . . . . . . . . . . 1 . . 1 . . . . . . . . . . . . . . . Impale 8 | . . . . . . . . . . . . . . . . . . . . . . . . . . 5 3 . . Melee Attacks 294 | . . . . 2 3 4 4 . 33 4 53 . 1 16 . 2 3 15 . . . 13 36 . 7 40 39 1 18 Impact 22 | . . . . 2 . . . . . . . . . . . . . . . . . 13 7 . . . . . . Slashing 208 | . . . . . 3 4 4 . 33 4 53 . 1 16 . 2 3 15 . . . . 29 . 4 12 6 1 18 Piercing 64 | . . . . . . . . . . . . . . . . . . . . . . . . . 3 28 33 . . Sneak Attacks 44 | . . . . 1 . 1 . . . 1 . . . 16 . . . 1 . . . . 4 . . 10 5 1 4 Combat Hostiles . | . . . . . . . . . . . . . . . . . . . . . . . . . . . . . . Follow-up Attacks . | . . . . . . . . . . . . . . . . . . . . . . . . . . . . . . Damage Inflicted 41009 | 75 992 1913 380 2488 964 2994 1176 74 2293 637 4927 612 2946 1603 290 . 3614 5554 . 230 341 100 1076 . 70 1378 1597 1141 1544 Guns 21405 | 75 991 1815 380 1402 752 2735 1176 74 957 419 2209 484 2309 591 290 . 1663 865 . 230 341 . 205 . . . 62 672 708 Cannons 3577 | . . . . . . . . . . . . 128 596 . . . 1951 459 . . . . . . 70 197 79 . 97 Explosions 6548 | . . 98 . 1043 212 191 . . 555 111 . . 38 . . . . 3896 . . . . . . . . 79 325 . Melee 9462 | . . . . 30 . 68 . . 781 107 2718 . . 1012 . . . 334 . . . 100 871 . . 1181 1377 144 739 Ramming 17 | . 1 . . 13 . . . . . . . . 3 . . . . . . . . . . . . . . . . Kinetic 17957 | 75 750 1375 270 1402 31 1161 1176 74 957 419 2209 484 2309 591 290 . 1663 805 . 212 . . . . . 197 127 672 708 Thermal 6575 | . 241 163 . . 721 1663 . . . . . 128 596 . . . 1951 381 . 18 341 . 205 . 70 . . . 97 Explosive 5738 | . . 66 . 1043 212 . . . 468 111 . . 38 . . . . 3800 . . . . . . . . . . . Electromagnetic 1260 | . . 309 110 . . 102 . . 87 . . . . . . . . 234 . . . . . . . . 93 325 . Impact 324 | . . . . 30 . . . . . . . . . . . . . . . . . 100 194 . . . . . . Slashing 6850 | . . . . . . 68 . . 781 107 2718 . . 1012 . . . 334 . . . . 677 . . 113 157 144 739 Piercing 2288 | . . . . . . . . . . . . . . . . . . . . . . . . . . 1068 1220 . . Highest Corruption 24 | . . . 1 . 10 20 24 . . 6 10 . 8 . . 1 1 5 5 5 5 5 12 12 14 . 1 3 3 Average Corruption 8 | . . . 1 . 10 14 21 . . 3 3 . 7 . . 1 1 3 5 5 5 5 11 12 12 . 1 2 2 Corruption Purged . | . . . . . . . . . . . . . . . . . . . . . . . . . . . . . . Corruption Blocked . | . . . . . . . . . . . . . . . . . . . . . . . . . . . . . . Effects 270 | . . . . . 19 57 42 . . 3 20 . 29 . . . 11 10 1 6 8 4 32 8 18 . . 1 1 Message Errors 68 | . . . . . 4 14 12 . . 1 4 . 6 . . . 3 3 1 1 4 . 8 1 5 . . . 1 Matter Fused 53 | . . . . . 4 7 9 . . 1 3 . 9 . . . 2 1 . 3 . 3 4 1 6 . . . . Heat Flow Errors 29 | . . . . . 1 9 6 . . . 1 . 2 . . . 2 1 . . . 1 4 . 2 . . . . Energy Discharges 38 | . . . . . 5 7 3 . . 1 4 . 3 . . . . 3 . 1 3 . 5 2 1 . . . . Parts Rejected 5 | . . . . . 1 . 1 . . . . . . . . . 1 . . . . . . 1 1 . . . . Parts Fused 3 | . . . . . . 1 . . . . . . . . . . . . . . . . 2 . . . . . . Data Loss (minor) 24 | . . . . . 1 10 5 . . . 1 . 2 . . . 1 . . 1 . . 2 . . . . 1 . Data Loss (major) 13 | . . . . . 1 1 2 . . . 4 . 2 . . . . 1 . . 1 . 1 . . . . . . Misfires 9 | . . . . . . 1 1 . . . 1 . 3 . . . . . . . . . 1 . 2 . . . . Alerts 6 | . . . . . 2 . . . . . . . 2 . . . . 1 . . . . 1 . . . . . . Misdirections 7 | . . . . . . . . . . . 1 . . . . . . . . . . . 3 2 1 . . . . Weapon Failures 15 | . . . . . . 7 3 . . . 1 . . . . . 2 . . . . . 1 1 . . . . . Overload Shots . | . . . . . . . . . . . . . . . . . . . . . . . . . . . . . . Overflow Damage 1928 | . . . . 3 . 21 . . 27 2 166 1 . 19 . . . 133 . . . 63 282 . 31 461 315 13 391 Projectiles 34 | . . . . . . . . . . . . 1 . . . . . 29 . . . . . . 4 . . . . Explosions 100 | . . . . 3 . . . . . . . . . . . . . 57 . . . . . . 27 . . 13 . Melee 1794 | . . . . . . 21 . . 27 2 166 . . 19 . . . 47 . . . 63 282 . . 461 315 . 391 Knockbacks 1 | . . . . . . . . . . . . . . . . . . . . . . 1 . . . . . . . Impact 1 | . . . . . . . . . . . . . . . . . . . . . . 1 . . . . . . . Kinetic . | . . . . . . . . . . . . . . . . . . . . . . . . . . . . . . Secondary . | . . . . . . . . . . . . . . . . . . . . . . . . . . . . . . Self-Inflicted Damage 244 | . . 27 . . . . . . 10 . . . 12 . . . . . . . . . . . 156 . . 39 . Shots 8 | . . 1 . . . . . . 1 . . . 1 . . . . . . . . . . . 3 . . 2 . Rammed 5 | . 1 . . 2 . . . . . 1 . . 1 . . . . . . . . . . . . . . . . Targets Rammed 5 | . 1 . . 2 . . . . . 1 . . 1 . . . . . . . . . . . . . . . . Kicked . | . . . . . . . . . . . . . . . . . . . . . . . . . . . . . . Crushed . | . . . . . . . . . . . . . . . . . . . . . . . . . . . . . . Highest Temperature 379 | . 119 123 20 16 182 379 241 . 6 15 117 341 276 . 3 . 310 152 . . . 176 232 . 204 10 44 259 318 Average Temperature 72 | . 26 42 11 7 65 100 82 . 4 5 47 100 83 . 3 . 108 32 . . . 91 93 . 34 7 7 99 87 Received Heat Transfer 5551 | . 228 405 81 420 162 288 279 . 162 66 165 54 807 40 27 18 902 858 9 . . 9 93 . 249 54 126 22 27 Effects 7 | . . . . . . 3 . . . . . 1 1 . . . 2 . . . . . . . . . . . . Shutdowns 1 | . . . . . . 1 . . . . . . . . . . . . . . . . . . . . . . . Energy Bleed 1 | . . . . . . . . . . . . . . . . . 1 . . . . . . . . . . . . Interference 4 | . . . . . . 2 . . . . . 1 1 . . . . . . . . . . . . . . . . Short Circuit 1 | . . . . . . . . . . . . . . . . . 1 . . . . . . . . . . . . Siege Activations 2 | . . . . . . . . . . . . . 1 . . . 1 . . . . . . . . . . . . Total Turns 24 | . . . . . . . . . . . . . 14 . . . 10 . . . . . . . . . . . . Longest Duration 14 | . . . . . . . . . . . . . 14 . . . 10 . . . . . . . . . . . . Martial Activations . | . . . . . . . . . . . . . . . . . . . . . . . . . . . . . . Shielding Activations . | . . . . . . . . . . . . . . . . . . . . . . . . . . . . . . Robots Disrupted . | . . . . . . . . . . . . . . . . . . . . . . . . . . . . . . Combat Hostiles . | . . . . . . . . . . . . . . . . . . . . . . . . . . . . . . Robots Corrupted 4 | . . . . . . . . . 1 . . . . . . . . . . . . 1 1 . . . . 1 . Combat Hostiles 3 | . . . . . . . . . 1 . . . . . . . . . . . . 1 . . . . . 1 . Parts Fried 10 | . . 2 . . . . . . . . . . . . . . . 4 . . . 1 2 . . . . 1 . Impact Corruptions 6 | . . . . . . . . . . . . . . . . . . . . . . 3 3 . . . . . . Robots Melted 3 | . . . . . 1 1 . . . . . . . . . . 1 . . . . . . . . . . . . Combat Hostiles 3 | . . . . . 1 1 . . . . . . . . . . 1 . . . . . . . . . . . . Parts Melted 22 | . . . . . 7 9 . . . . . 1 1 . . . . 1 . . . . 3 . . . . . . Heat Transferred 11132 | . 550 350 . . 1850 4442 . . . . . 200 835 . . . 851 648 . 37 629 . 592 . 74 . . . 74 Parts Sabotaged . | . . . . . . . . . . . . . . . . . . . . . . . . . . . . . . Parts Stolen . | . . . . . . . . . . . . . . . . . . . . . . . . . . . . . . Parts Stripped 4 | . . . . . . . . . . . . . . . . . . . . . . . 4 . . . . . . Power Chain Reactions 8 | . . 1 . . . 4 . . . . . . 2 . . . . . . . . . . . 1 . . . . Alert | -11 -10 -9 -9 -8 -8 -8 -8 -7 -7 -7 -7 -6 -6 -6 -6 -6 -6 -5 -5 -5 -5 -4 -4 -4 -4 -3 -3 -2 -1 ------- Run | Yrd Mat Mat Min Mat Gar Mat Gar Fac Gar Fac Gar Fac Ext Cet Arc Hub Gar Fac Upp Upp Zhi Pro Fac Was Fac Res Tes Res Acc Maximum Alert Level 4 | . . 2 1 3 4 3 4 3 3 2 3 1 1 1 1 . 2 2 . . . . . . 1 . . 1 . Low Security (%) 51 | 100 100 46 18 63 . . . . . 54 9 81 74 86 48 100 15 35 . . . . 100 100 81 100 100 96 100 Level 1 15 | . . 19 81 10 . . . . . 8 24 18 25 13 51 . 74 30 . . . . . . 18 . . 3 . Level 2 18 | . . 33 . 22 33 57 . 97 22 37 56 . . . . . 9 34 . . . . . . . . . . . Level 3 13 | . . . . 2 52 42 82 2 77 . 9 . . . . . . . . . . . . . . . . . . Level 4 1 | . . . . . 13 . 17 . . . . . . . . . . . . . . . . . . . . . . Level 5 . | . . . . . . . . . . . . . . . . . . . . . . . . . . . . . . High Security . | . . . . . . . . . . . . . . . . . . . . . . . . . . . . . . Max Security . | . . . . . . . . . . . . . . . . . . . . . . . . . . . . . . Sterilizations 1 | . . . . . . . . . . . . . . . . . . 1 . . . . . . . . . . . Peak Influence 1175 | 15 110 633 371 709 1119 1097 1175 706 1062 587 744 394 361 309 261 193 423 597 . . . . 60 9 297 182 174 204 131 Initial 702 | . . . 232 132 449 545 702 616 487 557 40 390 12 198 107 91 114 211 . . . . . 9 . 144 81 82 75 Average 322 | 1 29 251 267 229 790 690 976 649 816 286 454 133 154 130 182 102 295 312 . . . . 16 1 88 149 68 112 51 Influence Increases 13558 | 15 437 1190 299 1058 700 1088 583 190 695 208 794 83 1293 477 244 242 469 1036 36 93 12 4 325 4 647 304 503 234 295 Destroy 0b10 Robot/C 6130 | . 260 600 200 600 260 560 380 . 375 105 390 15 600 135 90 75 330 600 . 45 . . 60 . . 30 180 135 105 Destroy 0b10 Robot/NC 504 | 15 25 60 5 35 . 60 . 4 8 8 28 12 32 8 . . . 48 . . 12 4 36 . 4 36 32 12 20 Destroy Leader 948 | . 54 158 40 126 20 114 20 . 24 40 40 8 70 . 8 16 16 120 . . . . . . . 10 14 24 26 Allied During Kill 798 | . . . 24 18 . . 3 . 32 14 36 . 261 120 98 70 2 99 . . . . . . . . 21 . . Successful Hack 459 | . . 22 . 14 14 7 21 6 33 . 22 6 48 . . . . 37 . . . . 47 . 24 93 8 . 57 Select Force Hacks 99 | . . . . . . . . . . . . . . . . 76 . . . . . . . . . 23 . . . Disable Machine 420 | . . 15 15 30 . 60 . . . . 24 12 36 . 36 . 12 12 . . . . 36 . 48 . 60 12 12 Anti-Garrison Action 817 | . . . . . 300 . 100 . 152 . 189 . . . . . 76 . . . . . . . . . . . . Destroy Structure 792 | . 8 23 . 30 106 15 44 . 71 17 29 6 30 7 12 5 33 84 . . . . 26 4 68 40 56 3 75 Partial Spotted 144 | . . . . . . . . . . . . . 12 . . . . . . . . . 48 . 12 60 12 . . Lose Combat Pursuer 939 | . 90 30 15 15 . 30 15 . . 24 36 24 12 . . . . 36 36 48 . . 72 . 276 12 120 48 . Miscellaneous 1508 | . . 282 . 190 . 242 . 180 . . . . 192 207 . . . . . . . . . . 215 . . . . Influence Decreases 13432 | 15 437 594 554 708 272 1126 489 669 329 1212 108 801 964 563 252 340 229 966 226 165 223 4 299 30 370 437 500 255 295 Entered New Map 4928 | . . . 364 209 242 574 379 559 209 505 18 354 14 157 162 170 49 192 176 55 211 . . 17 . 133 63 65 51 Time Decay 5664 | 15 407 434 180 429 . 502 . 110 . 392 . 277 510 306 70 110 . 434 50 100 12 4 235 13 168 294 268 130 214 Search Patrol Dispatched 200 | . . 100 . . . . . . . . . . . . . . . . . . . . . . 100 . . . . Lost Part 1039 | . 30 60 10 30 30 50 70 . 40 . 50 . 80 . . . 80 220 . 10 . . 30 . 100 10 49 60 30 Lost Ally 1176 | . . . . 40 . . 40 . 80 40 40 20 360 100 20 60 100 120 . . . . 34 . 2 . 120 . . Purge Threat 425 | . . . . . . . . . . 275 . 150 . . . . . . . . . . . . . . . . . Squads Dispatched 73 | . 2 3 . 6 . 5 . . . 2 . 1 9 . 1 3 . 13 . . . . 6 . 7 7 4 3 1 Investigation 20 | . 1 2 . 1 . 1 . . . 1 . . 6 . 1 2 . . . . . . 1 . . 3 1 . . Extermination 8 | . . . . . . . . . . 1 . . . . . . . 1 . . . . 2 . 1 . 1 1 1 Reinforcement 33 | . 1 1 . 2 . 3 . . . . . 1 3 . . . . 5 . . . . 3 . 6 4 2 2 . Assault 5 | . . . . . . 1 . . . . . . . . . . . 4 . . . . . . . . . . . Garrison 7 | . . . . 3 . . . . . . . . . . . 1 . 3 . . . . . . . . . . . Intercept . | . . . . . . . . . . . . . . . . . . . . . . . . . . . . . . Searches Triggered 2 | . . 1 . . . . . . . . . . . . . . . . . . . . . . 1 . . . . Construction Impeded 7 | . . . . 1 . 1 . . . . . . 2 . . . . 1 . . . . . . . 1 . 1 . Haulers Reinforced 6 | . . . . . . . . . . . . . . . . . . 3 . . . . . . . 2 1 . . Active Scanning Responses . | . . . . . . . . . . . . . . . . . . . . . . . . . . . . . . Cargo Convoy Interrupts . | . . . . . . . . . . . . . . . . . . . . . . . . . . . . . . Stealth | -11 -10 -9 -9 -8 -8 -8 -8 -7 -7 -7 -7 -6 -6 -6 -6 -6 -6 -5 -5 -5 -5 -4 -4 -4 -4 -3 -3 -2 -1 --------- Run | Yrd Mat Mat Min Mat Gar Mat Gar Fac Gar Fac Gar Fac Ext Cet Arc Hub Gar Fac Upp Upp Zhi Pro Fac Was Fac Res Tes Res Acc Distress Signals 32 | . 1 4 . 3 . 1 . . . . . . 3 2 . 1 . 6 . . . . 4 . 1 5 1 . . Communications Jammed 33 | . . . . . . . . . . . . . . . . . . 26 . . . . . . . 7 . . . Distress Signals 33 | . . . . . . . . . . . . . . . . . . 26 . . . . . . . 7 . . . Times Spotted 671 | . 30 47 10 41 12 47 21 1 25 14 33 4 59 10 7 5 23 66 3 9 . 8 45 6 39 19 50 23 14 Peak Tracking Total 16 | . 6 6 3 7 4 5 5 1 5 3 7 3 8 5 2 4 5 16 3 4 . 10 8 6 14 6 12 9 8 Tactical Retreats 60 | . 5 1 1 1 . 1 1 . . 2 2 1 1 . . . . 3 2 1 . 2 14 . 8 1 10 2 1 ECM-based Alert Blocks 64 | . . . . . . . . . . . . . . . . . . . . . . 2 30 . 8 1 21 . 2 Traps | -11 -10 -9 -9 -8 -8 -8 -8 -7 -7 -7 -7 -6 -6 -6 -6 -6 -6 -5 -5 -5 -5 -4 -4 -4 -4 -3 -3 -2 -1 ------- Run | Yrd Mat Mat Min Mat Gar Mat Gar Fac Gar Fac Gar Fac Ext Cet Arc Hub Gar Fac Upp Upp Zhi Pro Fac Was Fac Res Tes Res Acc Traps Triggered 39 | . 4 1 . . 2 1 2 . 6 4 5 . 4 . . 1 3 . . . . . 2 . 1 3 . . . Indirectly . | . . . . . . . . . . . . . . . . . . . . . . . . . . . . . . Trap Hack Attempts . | . . . . . . . . . . . . . . . . . . . . . . . . . . . . . . Triggered . | . . . . . . . . . . . . . . . . . . . . . . . . . . . . . . Disarmed . | . . . . . . . . . . . . . . . . . . . . . . . . . . . . . . Reprogrammed . | . . . . . . . . . . . . . . . . . . . . . . . . . . . . . . Reused . | . . . . . . . . . . . . . . . . . . . . . . . . . . . . . . Traps Extracted . | . . . . . . . . . . . . . . . . . . . . . . . . . . . . . . Installed . | . . . . . . . . . . . . . . . . . . . . . . . . . . . . . . Triggered . | . . . . . . . . . . . . . . . . . . . . . . . . . . . . . . Machines | -11 -10 -9 -9 -8 -8 -8 -8 -7 -7 -7 -7 -6 -6 -6 -6 -6 -6 -5 -5 -5 -5 -4 -4 -4 -4 -3 -3 -2 -1 ---------- Run | Yrd Mat Mat Min Mat Gar Mat Gar Fac Gar Fac Gar Fac Ext Cet Arc Hub Gar Fac Upp Upp Zhi Pro Fac Was Fac Res Tes Res Acc Machines Disabled 53 | . . 1 1 2 7 4 3 . 4 . 5 1 3 . 3 . 3 1 . . . . 3 . 4 . 6 1 1 Max in Single Turn 2 | . . 1 1 1 2 1 2 . 1 . 1 1 1 . 1 . 1 1 . . . . . . 2 . 1 1 1 Garrison Access 6 | . . . . . . . . . . . . 1 . . . . . 2 . . . . . . . . 1 1 1 Garrison Relay 13 | . . . . . 3 . 1 . 4 . 3 . . . . . 2 . . . . . . . . . . . . Phase Generator 2 | . . . . . 1 . 1 . . . . . . . . . . . . . . . . . . . . . . Network Hub 2 | . . . . . . . . . . . . . . . . 2 . . . . . . . . . . . . . Energy Cycler 1 | . . . . . . . . . . . . . . . . . . . . . . . . . . . . . 1 Machines Repaired . | . . . . . . . . . . . . . . . . . . . . . . . . . . . . . . Machines Dismantled . | . . . . . . . . . . . . . . . . . . . . . . . . . . . . . . Machines Sabotaged 2 | . . . . . . . . . . . . . . . . 2 . . . . . . . . . . . . . Overloaded Fab Kills . | . . . . . . . . . . . . . . . . . . . . . . . . . . . . . . Hacking | -11 -10 -9 -9 -8 -8 -8 -8 -7 -7 -7 -7 -6 -6 -6 -6 -6 -6 -5 -5 -5 -5 -4 -4 -4 -4 -3 -3 -2 -1 --------- Run | Yrd Mat Mat Min Mat Gar Mat Gar Fac Gar Fac Gar Fac Ext Cet Arc Hub Gar Fac Upp Upp Zhi Pro Fac Was Fac Res Tes Res Acc Machines Accessed 105 | . 3 4 . 6 3 9 2 2 4 3 3 6 16 . . 4 1 5 . . 4 . 6 . 5 7 6 2 4 Terminals 79 | . 2 2 . 4 3 7 2 1 4 2 3 4 16 . . 3 1 4 . . . . 5 . 4 4 5 1 2 Fabricators . | . . . . . . . . . . . . . . . . . . . . . . . . . . . . . . Repair Stations 2 | . . . . . . . . . . . . . . . . . . . . . . . 1 . 1 . . . . Recycling Units 3 | . 1 . . 1 . . . . . . . 1 . . . . . . . . . . . . . . . . . Scanalyzers 7 | . . 2 . . . 1 . . . . . . . . . . . 1 . . . . . . . 2 . . 1 Garrison Access 10 | . . . . 1 . 1 . 1 . 1 . 1 . . . 1 . . . . . . . . . 1 1 1 1 Total Hacks 258 | . 6 11 . 15 8 15 2 3 8 5 4 9 35 . . 9 2 12 . . 17 . 23 . 14 24 17 4 15 Successful 118 | . 2 7 . 6 1 6 2 2 4 1 2 5 13 . . 4 . 6 . . 17 . 8 . 9 11 5 2 5 Failed 139 | . 4 4 . 9 7 8 . 1 4 4 2 4 22 . . 5 2 6 . . . . 15 . 5 13 12 2 10 Catastrophic 29 | . 1 . . 1 2 2 . . . 3 . 2 5 . . 2 . 1 . . . . . . . 3 4 1 2 Database Lockouts 1 | . . . . . . 1 . . . . . . . . . . . . . . . . . . . . . . . Manual 58 | . 1 6 . 2 . 1 . . . 4 . . 5 1 . 7 . 2 . . . . 9 . 7 8 . . 5 Terminals 187 | . 5 7 . 13 8 12 2 2 8 4 4 6 35 . . 8 2 10 . . . . 15 . 12 12 15 2 5 Fabricators . | . . . . . . . . . . . . . . . . . . . . . . . . . . . . . . Repair Stations 10 | . . . . . . . . . . . . . . . . . . . . . . . 8 . 2 . . . . Recycling Units 3 | . 1 . . 1 . . . . . . . 1 . . . . . . . . . . . . . . . . . Scanalyzers 20 | . . 4 . . . 2 . . . . . . . . . . . 2 . . . . . . . 7 . . 5 Garrison Access 21 | . . . . 1 . 1 . 1 . 1 . 2 . . . 1 . . . . . . . . . 5 2 2 5 Terminal Hacks 71 | . 1 3 . 3 1 4 2 1 4 . 2 3 10 . . . . 2 . . 17 . 4 . 4 5 3 . 2 Record 5 | . . . . . . . . . . . . . . . . . . . . . 5 . . . . . . . . Part Schematic 5 | . . . . . . . . . . . . . . . . . . . . . 4 . 1 . . . . . . Robot Analysis 4 | . . . . . . . . . . . . . . . . . . . . . 4 . . . . . . . . Prototype ID Bank 4 | . . . . . . . . . . . . . . . . . . . . . 4 . . . . . . . . Open Door 12 | . . . . . . . 1 . 1 . . 1 8 . . . . . . . . . . . . . 1 . . Open DSF 1 | . . . . . . . . . . . . . . . . . . . . . . . 1 . . . . . . Level Access Points 1 | . . . . . . . . . . . . . . . . . . . . . . . . . 1 . . . . Branch Access Points 6 | . . 1 . 1 . . . . . . . 1 . . . . . 1 . . . . . . . 1 . . 1 Emergency Access Points 3 | . . . . . . . 1 . 1 . 1 . . . . . . . . . . . . . . . . . . Alert Level 1 | . . . . . . 1 . . . . . . . . . . . . . . . . . . . . . . . Unreport Threat 1 | . . . . . . . . . . . . 1 . . . . . . . . . . . . . . . . . Locate Traps 2 | . . . . 1 . . . . . . . . . . . . . . . . . . . . . . 1 . . Recall Investigation 1 | . . . . . . . . . . . . . 1 . . . . . . . . . . . . . . . . Hauler Manifests 1 | . 1 . . . . . . . . . . . . . . . . . . . . . . . . . . . . Registered Components 5 | . . . . . . 1 . 1 . . . . . . . . . . . . . . 1 . 1 1 . . . Zone Layout 15 | . . 2 . 1 . 2 . . . . . . 1 . . . . 1 . . . . 1 . 2 3 1 . 1 Garrison Registry 3 | . . . . . 1 . . . 1 . 1 . . . . . . . . . . . . . . . . . . Patrol Navigation 1 | . . . . . . . . . 1 . . . . . . . . . . . . . . . . . . . . Fabricator Hacks . | . . . . . . . . . . . . . . . . . . . . . . . . . . . . . . Repair Station Hacks 3 | . . . . . . . . . . . . . . . . . . . . . . . 1 . 2 . . . . Scan Component 1 | . . . . . . . . . . . . . . . . . . . . . . . . . 1 . . . . Repair 1 | . . . . . . . . . . . . . . . . . . . . . . . . . 1 . . . . Refit 1 | . . . . . . . . . . . . . . . . . . . . . . . 1 . . . . . . Recycling Unit Hacks 2 | . 1 . . 1 . . . . . . . . . . . . . . . . . . . . . . . . . Report Inventory 2 | . 1 . . 1 . . . . . . . . . . . . . . . . . . . . . . . . . Scanalyzer 10 | . . 3 . . . 1 . . . . . . . . . . . 2 . . . . . . . 3 . . 1 Insert Component 2 | . . 1 . . . . . . . . . . . . . . . . . . . . . . . 1 . . . Retrieve Study 8 | . . 2 . . . 1 . . . . . . . . . . . 2 . . . . . . . 2 . . 1 Garrison Access Hacks 14 | . . . . 1 . 1 . 1 . 1 . 2 . . . 1 . . . . . . . . . 1 2 2 2 Unlock Access 5 | . . . . 1 . 1 . 1 . 1 . . . . . 1 . . . . . . . . . . . . . Seal Access 4 | . . . . . . . . . . . . 1 . . . . . . . . . . . . . . 1 1 1 Coupler Status 5 | . . . . . . . . . . . . 1 . . . . . . . . . . . . . 1 1 1 1 Unauthorized Hacks 18 | . . 1 . 1 . . . . . . . . 3 . . 3 . 2 . . . . 3 . 3 2 . . . Terminals 16 | . . 1 . 1 . . . . . . . . 3 . . 3 . 2 . . . . 2 . 3 1 . . . Track 1 | . . . . . . . . . . . . . . . . . . . . . . . . . 1 . . . . Assimilate 4 | . . . . . . . . . . . . . . . . . . 1 . . . . 2 . 1 . . . . Botnet 9 | . . 1 . 1 . . . . . . . . 3 . . 1 . 1 . . . . . . 1 1 . . . Sabotage 2 | . . . . . . . . . . . . . . . . 2 . . . . . . . . . . . . . Fabricators . | . . . . . . . . . . . . . . . . . . . . . . . . . . . . . . Repair Stations 1 | . . . . . . . . . . . . . . . . . . . . . . . 1 . . . . . . Patch 1 | . . . . . . . . . . . . . . . . . . . . . . . 1 . . . . . . Recycling Units . | . . . . . . . . . . . . . . . . . . . . . . . . . . . . . . Scanalyzers . | . . . . . . . . . . . . . . . . . . . . . . . . . . . . . . Garrison Access 1 | . . . . . . . . . . . . . . . . . . . . . . . . . . 1 . . . Eject 1 | . . . . . . . . . . . . . . . . . . . . . . . . . . 1 . . . Data Cores Recovered 3 | . . . . . . . . . . 1 . 1 . . . . . . . . . . 1 . . . . . . Used 2 | . . . . . . . . . . 1 . 1 . . . . . . . . . . . . . . . . . Hacking Detections 70 | . 2 3 . 5 3 6 2 . 4 2 3 4 13 1 . 2 1 2 . . . . 3 . 1 5 4 1 3 Full Trace Events 9 | . . . . 1 1 . . . . 1 . . 5 . . . . . . . . . . . . . 1 . . Feedback Events . | . . . . . . . . . . . . . . . . . . . . . . . . . . . . . . Feedback Blocked . | . . . . . . . . . . . . . . . . . . . . . . . . . . . . . . Robot Schematics Acquired . | . . . . . . . . . . . . . . . . . . . . . . . . . . . . . . Robots Built . | . . . . . . . . . . . . . . . . . . . . . . . . . . . . . . Authchips . | . . . . . . . . . . . . . . . . . . . . . . . . . . . . . . Time . | . . . . . . . . . . . . . . . . . . . . . . . . . . . . . . Total Robot Build Rating . | . . . . . . . . . . . . . . . . . . . . . . . . . . . . . . Part Schematics Acquired 8 | . . . . . . . . . . . . . . . . . . . . . 4 . 1 . . . 3 . . Parts Built . | . . . . . . . . . . . . . . . . . . . . . . . . . . . . . . Authchips . | . . . . . . . . . . . . . . . . . . . . . . . . . . . . . . Time . | . . . . . . . . . . . . . . . . . . . . . . . . . . . . . . Total Part Build Rating . | . . . . . . . . . . . . . . . . . . . . . . . . . . . . . . Part Studies Acquired 8 | . . 2 . . . 1 . . . . . . . . . . . 2 . . . . . . . 2 . . 1 Parts Repaired 1 | . . . . . . . . . . . . . . . . . . . . . . . . . 1 . . . . Time 51 | . . . . . . . . . . . . . . . . . . . . . . . . . 51 . . . . Parts Recycled . | . . . . . . . . . . . . . . . . . . . . . . . . . . . . . . Recycled Matter . | . . . . . . . . . . . . . . . . . . . . . . . . . . . . . . Retrieved Matter . | . . . . . . . . . . . . . . . . . . . . . . . . . . . . . . Retrieved Components . | . . . . . . . . . . . . . . . . . . . . . . . . . . . . . . Parts Scanalyzed . | . . . . . . . . . . . . . . . . . . . . . . . . . . . . . . Part Schematics Acquired . | . . . . . . . . . . . . . . . . . . . . . . . . . . . . . . Parts Damaged . | . . . . . . . . . . . . . . . . . . . . . . . . . . . . . . Bothacking | -11 -10 -9 -9 -8 -8 -8 -8 -7 -7 -7 -7 -6 -6 -6 -6 -6 -6 -5 -5 -5 -5 -4 -4 -4 -4 -3 -3 -2 -1 ------------ Run | Yrd Mat Mat Min Mat Gar Mat Gar Fac Gar Fac Gar Fac Ext Cet Arc Hub Gar Fac Upp Upp Zhi Pro Fac Was Fac Res Tes Res Acc Used RIF Installer 5 | . . . . . 1 . 1 . 1 . 2 . . . . . . . . . . . . . . . . . . Hotswap 1 | . . . . . . . . . . . 1 . . . . . . . . . . . . . . . . . . Threat Obfuscator 1 | . . . . . . . 1 . . . . . . . . . . . . . . . . . . . . . . Zone Cloak 1 | . . . . . . . . . 1 . . . . . . . . . . . . . . . . . . . . Patrol Navigation 1 | . . . . . . . . . . . 1 . . . . . . . . . . . . . . . . . . Program Shield 1 | . . . . . . . . . . . 1 . . . . . . . . . . . . . . . . . . Robots Hacked 34 | . . . . . . . . . . 1 8 . 18 . . . 2 2 . . . . . . . . 2 . 1 Non-combat 2 | . . . . . . . . . . 1 . . . . . . . . . . . . . . . . . . 1 Combat 32 | . . . . . . . . . . . 8 . 18 . . . 2 2 . . . . . . . . 2 . . Robot Hacks Applied 35 | . . . . . . . . . . 2 8 . 18 . . . 2 2 . . . . . . . . 2 . 1 parse_system 2 | . . . . . . . . . . . . . 2 . . . . . . . . . . . . . . . . purge_threat 2 | . . . . . . . . . . 2 . . . . . . . . . . . . . . . . . . . scatter_targeting 1 | . . . . . . . . . . . . . 1 . . . . . . . . . . . . . . . . disable_weapons 2 | . . . . . . . . . . . 2 . . . . . . . . . . . . . . . . . . reboot_system 6 | . . . . . . . . . . . 2 . 3 . . . 1 . . . . . . . . . . . . overwrite_iff 9 | . . . . . . . . . . . . . 9 . . . . . . . . . . . . . . . . formatsys_low 1 | . . . . . . . . . . . . . . . . . . . . . . . . . . . . . 1 formatsys_high 12 | . . . . . . . . . . . 4 . 3 . . . 1 2 . . . . . . . . 2 . . Relay Couplers Released 54 | . . . . . 10 . 3 . 13 . 15 . . . . . 8 1 . . . . . . . 4 . . . Ejected 4 | . . . . . . . . . . . . . . . . . . . . . . . . . . 4 . . . Machine Destruction 50 | . . . . . 10 . 3 . 13 . 15 . . . . . 8 1 . . . . . . . . . . . Attached 11 | . . . . . . . . . . 1 3 . 3 . . . 1 1 . . . . . . . . 1 . 1 Fabnet Peak Effective % . | . . . . . . . . . . . . . . . . . . . . . . . . . . . . . . Robots Rewired 23 | . . . . . . . 2 1 6 . . . 10 . . . 2 . . . . . 1 . . . 1 . . Allies Hacked 1 | . . . . . . . . . . . . . . . . . . . . . . . . . . . 1 . . Hacks Repelled . | . . . . . . . . . . . . . . . . . . . . . . . . . . . . . . Allies | -11 -10 -9 -9 -8 -8 -8 -8 -7 -7 -7 -7 -6 -6 -6 -6 -6 -6 -5 -5 -5 -5 -4 -4 -4 -4 -3 -3 -2 -1 -------- Run | Yrd Mat Mat Min Mat Gar Mat Gar Fac Gar Fac Gar Fac Ext Cet Arc Hub Gar Fac Upp Upp Zhi Pro Fac Was Fac Res Tes Res Acc Total Allies 80 | . . . 2 . . . 2 1 6 . 4 . 39 5 . . 3 6 . . . . 3 . 1 . 7 . 1 Largest Group 11 | . . . 2 2 . . 2 1 5 2 2 1 10 11 7 5 2 4 . . . . 2 . 1 . 4 . 1 Highest-Rated Group 793 | . . . 53 53 . . 56 32 123 42 46 32 448 793 542 407 184 196 . . . . 56 . 10 . 258 . 26 Highest-Rated Ally 159 | . . . 31 31 . . 31 32 39 26 32 32 159 159 96 96 96 49 . . . . 56 . 10 . 159 . 26 Total Orders 7 | . . . . . . . . . . . 5 . . . . . . . . . . . . . . . . . 2 STAY 4 | . . . . . . . . . . . 3 . . . . . . . . . . . . . . . . . 1 FOLLOW 2 | . . . . . . . . . . . 2 . . . . . . . . . . . . . . . . . . DROP 1 | . . . . . . . . . . . . . . . . . . . . . . . . . . . . . 1 Ally Attacks 553 | . . . 13 12 . . 5 . 34 28 26 1 213 76 42 21 19 36 . . . . 2 . . . 25 . . Total Damage 13309 | . . . 232 163 . . 81 . 585 519 519 39 4211 1870 1398 713 577 991 . . . . 61 . . . 1350 . . Kills 96 | . . . 4 3 . . 2 . 5 1 6 . 29 10 6 5 2 16 . . . . . . . . 7 . . Allies Corrupted 1 | . . . . . . . . . . . . . . . . . . . . . . . . . . . 1 . . Allies Melted 2 | . . . . . . . . . 1 . . . . . . . . 1 . . . . . . . . . . . X0-1V1 Amusement Gains 312 | . 11 15 . 10 50 . 30 . 5 . . . 15 . . 45 20 26 . . . . 20 . 30 30 . 5 . Good Acts 107 | . . 8 1 . 2 6 5 2 4 6 7 4 9 1 . . 1 5 1 2 . 8 11 3 . 5 11 . 5 Bad Acts 126 | . . 10 . 2 4 8 4 3 1 1 5 3 5 7 1 . 10 7 3 3 . 3 6 4 13 5 3 11 4 Intel | -11 -10 -9 -9 -8 -8 -8 -8 -7 -7 -7 -7 -6 -6 -6 -6 -6 -6 -5 -5 -5 -5 -4 -4 -4 -4 -3 -3 -2 -1 ------- Run | Yrd Mat Mat Min Mat Gar Mat Gar Fac Gar Fac Gar Fac Ext Cet Arc Hub Gar Fac Upp Upp Zhi Pro Fac Was Fac Res Tes Res Acc Active Infowar (turns) 8979 | 26 268 . . 440 . . . . . 398 465 645 1121 222 . 220 309 696 . 154 332 315 768 145 439 653 603 270 490 Optics 3034 | . . . . . . . . . . . . . . . . . . . . . . . 434 145 439 653 603 270 490 Sensors 5789 | . . . . . . . . . . . . 382 1121 222 . 220 1 428 . 154 332 231 520 145 350 500 598 99 486 IFF 169 | . . . . . . . . . . . . . . . . . . . . . . 23 146 . . . . . . Traps 2 | . . . . . . . . . . . . 2 . . . . . . . . . . . . . . . . . Seismic 1202 | 26 268 . . 440 . . . . . 398 70 . . . . . . . . . . . . . . . . . . Jamming 1681 | . . . . . . . . . . . 395 606 59 . . . 308 268 . . . . . . . 45 . . . ECM 1445 | . . . . . . . . . . . . . . . . . . . . . . 188 382 55 235 48 269 151 117 Robot Analysis Total 4 | . . . . . . . . . . . . . . . . . . . . . 4 . . . . . . . . Derelict Logs Recovered 2 | . . . 1 . . . . . . . . . . . . . . . . 1 . . . . . . . . . Drone Launches . | . . . . . . . . . . . . . . . . . . . . . . . . . . . . . . Drone Recoveries . | . . . . . . . . . . . . . . . . . . . . . . . . . . . . . . Exploration | -11 -10 -9 -9 -8 -8 -8 -8 -7 -7 -7 -7 -6 -6 -6 -6 -6 -6 -5 -5 -5 -5 -4 -4 -4 -4 -3 -3 -2 -1 ------------- Run | Yrd Mat Mat Min Mat Gar Mat Gar Fac Gar Fac Gar Fac Ext Cet Arc Hub Gar Fac Upp Upp Zhi Pro Fac Was Fac Res Tes Res Acc Turns Passed 21257 | 93 1477 1286 361 1125 772 1354 906 235 1140 922 1328 645 2134 680 141 220 1013 1077 119 214 332 315 768 145 439 653 603 270 490 Spaces Moved 13580 | 45 575 546 173 465 356 564 364 121 550 556 607 412 1046 298 45 132 396 499 232 269 175 412 1075 309 629 889 830 302 708 Core 377 | 2 . . . . . . . . . . . . . . . . . 9 232 118 16 . . . . . . . . Treads 4908 | 43 575 546 173 465 356 564 364 18 31 24 . . 388 298 45 132 396 490 . . . . . . . . . . . Legs . | . . . . . . . . . . . . . . . . . . . . . . . . . . . . . . Wheels 2831 | . . . . . . . . 103 519 532 607 412 658 . . . . . . . . . . . . . . . . Hover 5218 | . . . . . . . . . . . . . . . . . . . . . 64 412 1075 309 629 889 830 302 708 Flight 246 | . . . . . . . . . . . . . . . . . . . . 151 95 . . . . . . . . Fastest Speed 21 | 50 160 160 170 170 170 158 158 120 130 130 130 130 125 160 160 160 160 50 50 35 35 30 27 21 21 38 41 41 40 Average Speed 109 | 155 160 163 170 194 170 178 190 133 136 135 130 132 153 161 160 160 162 164 50 44 48 51 50 34 40 45 42 62 42 Slowest Speed 320 | 160 160 240 170 250 170 250 245 165 245 320 130 145 240 163 160 160 240 240 50 200 150 92 92 35 110 110 46 106 45 Overloaded Moves 70 | . . . . . . . . . . . . . . . . . . . . . . 12 7 6 45 . . . . Propulsion Burnouts . | . . . . . . . . . . . . . . . . . . . . . . . . . . . . . . Robots Hopped 2 | . . . . . . . . . . . . . . . . . . . . 2 . . . . . . . . . Potential Cave-ins 9 | . . . . . . . . . . . . . . 5 . . . 2 . . . . . . . . 2 . . Cave-ins Triggered 1 | . . . . . . . . . . . . . . . . . . 1 . . . . . . . . . . . Exploration Rate (%) 46 | 4 88 71 46 47 53 56 45 6 77 14 72 13 80 81 73 20 39 16 54 45 61 61 31 85 23 30 76 10 22 Regions Visited 29 Branch Regions 10 Pre-discovered Areas 3 | . . . . . . . . . . . . . . . . . . . . . 3 . . . . . . . . Known Exits Taken 16 | . . 1 . 1 . 1 . 1 . 1 . 1 1 1 1 1 . 1 . . . 1 . . 1 1 1 1 . Unknown Exits Taken 6 | 1 1 . 1 . . . . . . . . . . . . . . . 1 1 1 . . . . . . . . Scrap Searched 6 | . . . . . . . . . . . . . . . . . . . 3 . . 3 . . . . . . . Spaces Dug 156 | . 5 4 . 1 . 3 1 . 2 2 2 3 . . . 2 . 5 . 28 . 12 13 6 19 18 19 . 11 Terrain Destroyed 621 | . 6 19 . 27 148 11 87 . 18 17 7 6 28 . 6 2 11 50 . 30 . 12 13 6 39 20 24 6 28 Melee 85 | . . . . 1 . 3 1 . 2 2 1 . . . . 2 . 3 . . . 12 13 . 7 17 12 . 9 Projectile 148 | . 6 4 . . . . . . 2 . 6 6 11 . 6 . 11 12 . 29 . . . 6 22 3 12 6 6 AOE 387 | . . 15 . 26 148 8 86 . 14 15 . . 17 . . . . 35 . . . . . . 10 . . . 13 Terrain Rammed . | . . . . . . . . . . . . . . . . . . . . . . . . . . . . . . Walls Destroyed . | . . . . . . . . . . . . . . . . . . . . . . . . . . . . . . Machines Disabled . | . . . . . . . . . . . . . . . . . . . . . . . . . . . . . . Actions | -11 -10 -9 -9 -8 -8 -8 -8 -7 -7 -7 -7 -6 -6 -6 -6 -6 -6 -5 -5 -5 -5 -4 -4 -4 -4 -3 -3 -2 -1 --------- Run | Yrd Mat Mat Min Mat Gar Mat Gar Fac Gar Fac Gar Fac Ext Cet Arc Hub Gar Fac Upp Upp Zhi Pro Fac Was Fac Res Tes Res Acc Total 17738 | 58 980 756 212 582 453 747 493 192 829 682 921 473 1413 447 100 136 611 655 233 326 400 490 1217 341 781 1051 978 348 833 Wait 1697 | . 279 37 23 19 44 44 26 39 98 58 121 13 136 75 46 . 39 37 . 9 199 43 47 14 105 43 39 3 61 Move 13548 | 44 574 545 172 465 354 564 362 121 549 556 605 411 1045 297 44 132 395 497 231 264 174 411 1075 308 628 888 829 301 707 Hop 2 | . . . . . . . . . . . . . . . . . . . . 2 . . . . . . . . . Pick Up 237 | 3 18 24 1 14 7 13 11 8 9 6 8 3 15 7 1 . 12 15 . 4 1 4 11 4 5 17 4 6 6 Fast Attach 200 | 7 2 13 . 6 2 14 7 3 5 12 7 8 10 9 . . 13 6 2 1 8 6 13 1 5 19 12 4 5 Attach 120 | . 5 11 1 4 3 5 7 1 1 1 4 2 12 3 . . 8 11 . 6 1 2 2 2 5 7 4 6 6 Detach 35 | . . 3 . 1 1 5 2 2 . . . 1 3 1 . . 2 . . 1 . 3 1 . 2 3 1 2 1 Swap 204 | . 13 10 1 7 6 11 7 1 16 15 16 4 25 5 1 2 15 15 . . . 1 4 . 1 8 7 5 8 Drop 242 | . 9 23 1 13 3 15 4 11 10 13 9 10 11 19 1 . 12 9 . 5 . 7 10 5 2 20 16 1 3 Fire 939 | 4 79 90 13 50 30 72 37 3 30 16 81 21 109 15 7 . 75 48 . 34 17 . 13 7 21 7 23 19 18 Melee 293 | . . . . 2 3 4 4 . 33 4 53 . 1 16 . 2 3 15 . . . 13 36 . 7 39 39 1 18 Ram . | . . . . . . . . . . . . . . . . . . . . . . . . . . . . . . Kick . | . . . . . . . . . . . . . . . . . . . . . . . . . . . . . . Crush 4 | . 1 . . 1 . . . . . 1 . . 1 . . . . . . . . . . . . . . . . Escape Stasis 48 | . . . . . . . 4 . 25 . 16 . 2 . . . . 1 . . . . . . . . . . . Rewire 169 | . . . . . . . 22 3 53 . 1 . 43 . . . 37 1 . . . . 5 . . . 4 . . Trap . | . . . . . . . . . . . . . . . . . . . . . . . . . . . . . . Miscellaneous . | . . . . . . . . . . . . . . . . . . . . . . . . . . . . . . Route ------- -11/Scrapyard -10/Materials (discovered 5 exits: *Mat x2 / [*Min x2] / [*Sub]) -9/Materials (discovered 4 exits: *Mat x2 / *Min x2) -9/Mines (discovered 2 exits: *Mat x2) -8/Materials -8/Garrison (discovered 4 exits: *Mat x4) -8/Materials (discovered 3 exits: *Fac x2 / Gar) -8/Garrison -7/Factory (discovered 2 exits: Fac / Gar) -7/Garrison (discovered 3 exits: *Fac x3) -7/Factory (discovered 4 exits: *Fac x2 / Low / Gar) -7/Garrison (discovered 3 exits: *Fac x3) -6/Factory (discovered 5 exits: Fac / Low x2 / *Ext x2) -6/Extension (discovered 2 exits: *Fac / *Cet) -6/Cetus (discovered 2 exits: *Fac / *Arc) -6/Archives -6/Hub_04(d) -6/Garrison -5/Factory (discovered 3 exits: *Fac / *Upp x2) -5/Upper Caves -5/Upper Caves (discovered 2 exits: Fac / *Zhi) -5/Zhirov -4/Proximity Caves -4/Factory (discovered 3 exits: *Res / *Upp x2) -4/Waste -4/Factory (discovered 4 exits: *Res x4) -3/Research (discovered 3 exits: *Res / *Tes x2) -3/Testing -2/Research -1/Access (discovered 2 exits: *Sur / Com) To Epsilon Eridani History --------- Turn | Location | Event 39 | -11/Scrapyard | Discovered new exit (range 15) 94 | -11/Scrapyard | Entered Materials 318 | -10/Materials | Build established: Mutant 564 | -10/Materials | Discovered new exit (range 7) 637 | -10/Materials | Discovered new exit (range 16) 921 | -10/Materials | Discovered new exit (range 6) 1299 | -10/Materials | Discovered new exit (range 12) 1513 | -10/Materials | Discovered new exit (range 6) 1523 | -10/Materials | Build established: Scavenger-Mutant 1541 | -10/Materials | Prayed at D.C.S.S. Altar Unit 1571 | -10/Materials | Entered another Materials area 1571 | -9/Materials | Evolved 2 slots: Propulsion x1, Weapon x1 1653 | -9/Materials | Heat dissipation permanently improved by X0-1V1 (+15; -75 max core) 1879 | -9/Materials | Lost 8 parts (1p3n1u3w) 1981 | -9/Materials | Discovered new exit (range 4) 2013 | -9/Materials | X0-1V1 sent someone to keep an eye on you 2147 | -9/Materials | Identified exit to Mines 2169 | -9/Materials | X0-1V1 added 0b10 threat records associated with you (major) 2254 | -9/Materials | Discovered new exit (range 14) 2349 | -9/Materials | Core integrity restored by X0-1V1 (+71) 2370 | -9/Materials | Build established: Scavenger-Gunner 2371 | -9/Materials | Search patrols dispatched 2490 | -9/Materials | X0-1V1 vaporized surrounding terrain (radius 19) 2857 | -9/Materials | Entered Mines 2882 | -9/Mines | Discovered new exit (range 6) 3017 | -9/Mines | Build established: Gunner 3035 | -9/Mines | Learned Materials stockpile data 3117 | -9/Mines | Discovered new exit (range 11) 3175 | -9/Mines | A weapon hastily lodged in a ceiling crevice suddenly fell to the ground 3205 | -9/Mines | Inventory capacity permanently improved by X0-1V1 (+1; -100 max core) 3218 | -9/Mines | Entered Materials 3218 | -8/Materials | Accompanied by 2 allies 3218 | -8/Materials | Evolved 2 slots: Utility x2 3223 | -8/Materials | Led the pair of lost Derelicts to an unsafe place 3805 | -8/Materials | X0-1V1 added 0b10 threat records associated with you (considerable) 4141 | -8/Materials | Garrison activated, responded to threat 4338 | -8/Materials | Identified exit to Garrison 4343 | -8/Materials | Entered Garrison 4411 | -8/Garrison | Installed Relay Interface Framework 4442 | -8/Garrison | Phase Generator disabled 4475 | -8/Garrison | System corruption reached 10% 4545 | -8/Garrison | Triggered checkpoint 4663 | -8/Garrison | Garrison Relay disabled 4716 | -8/Garrison | Discovered new exit (range 37) 4716 | -8/Garrison | Discovered new exit (range 47) 4716 | -8/Garrison | Discovered new exit (range 42) 4716 | -8/Garrison | Discovered new exit (range 40) 4765 | -8/Garrison | Triggered checkpoint 4779 | -8/Garrison | Triggered checkpoint 4886 | -8/Garrison | X0-1V1 mutated your Utility slot to Power slot 4990 | -8/Garrison | Garrison Relay disabled 5010 | -8/Garrison | Garrison Relay disabled 5115 | -8/Garrison | Entered Materials 5158 | -8/Materials | X0-1V1 sent hostile H-55 Commando (x3) 5211 | -8/Materials | Core integrity fell below 50% 5213 | -8/Materials | Weapon slot count temporarily expanded by X0-1V1 (+2) 5683 | -8/Materials | Discovered new exit (range 16) 5716 | -8/Materials | Melee accuracy permanently improved by X0-1V1 (+6%; -60 max core) 5762 | -8/Materials | X0-1V1 upgraded hostiles (x1) 5847 | -8/Materials | Central database locked down 6087 | -8/Materials | Discovered new exit (range 7) 6315 | -8/Materials | First assault squad dispatched 6394 | -8/Materials | X0-1V1 added 0b10 threat records associated with you (major) 6469 | -8/Materials | Identified exit to Garrison 6469 | -8/Materials | Entered Garrison 6567 | -8/Garrison | Phase Generator disabled 6659 | -8/Garrison | X0-1V1 mutated your Propulsion slot to Weapon slot 6689 | -8/Garrison | Triggered checkpoint 6714 | -8/Garrison | Garrison Relay disabled 6879 | -8/Garrison | Triggered checkpoint 6880 | -8/Garrison | X0-1V1 mutated your Weapon slot to Propulsion slot 6893 | -8/Garrison | Triggered checkpoint 6981 | -8/Garrison | Destroyed 7 combat bots 7015 | -8/Garrison | Lost 4 parts (1p1n2w) 7227 | -8/Garrison | Core integrity fell below 20% 7251 | -8/Garrison | Lost 3 parts (1n2w) 7258 | -8/Garrison | Expanded RIF knowledge: Threat Obfuscation 7301 | -8/Garrison | Discovered new exit (range 13) 7372 | -8/Garrison | Build established: Scavenger-Gunner 7375 | -8/Garrison | Entered Factory 7375 | -7/Factory | Evolved 2 slots: Propulsion x1, Utility x1 7389 | -7/Factory | X0-1V1 added 0b10 threat records associated with you (minor) 7509 | -7/Factory | Identified exit to Factory 7509 | -7/Factory | X0-1V1 revealed exit location to -6/Factory 7520 | -7/Factory | X0-1V1 sent you to a vault 7608 | -7/Factory | Identified exit to Garrison 7610 | -7/Factory | X0-1V1 added 0b10 threat records associated with you (minor) 7610 | -7/Factory | Entered Garrison 7622 | -7/Garrison | Triggered checkpoint 7665 | -7/Garrison | X0-1V1 activates XOMVISION 7744 | -7/Garrison | Triggered checkpoint 7775 | -7/Garrison | Garrison Relay disabled 7837 | -7/Garrison | Expanded RIF knowledge: Zone Cloak 7986 | -7/Garrison | Triggered checkpoint 8190 | -7/Garrison | Discovered new exit (range 12) 8192 | -7/Garrison | Triggered checkpoint 8222 | -7/Garrison | Triggered checkpoint 8324 | -7/Garrison | Garrison Relay disabled 8386 | -7/Garrison | Triggered checkpoint 8422 | -7/Garrison | Garrison Relay disabled 8522 | -7/Garrison | Triggered checkpoint 8608 | -7/Garrison | Identified exit to Factory 8608 | -7/Garrison | X0-1V1 revealed exit location to -7/Factory 8612 | -7/Garrison | Triggered checkpoint 8612 | -7/Garrison | Discovered exit to Factory (range 56) 8612 | -7/Garrison | Discovered exit to Factory (range 14) 8612 | -7/Garrison | Discovered exit to Factory (range 79) 8662 | -7/Garrison | Lost 3 allies 8669 | -7/Garrison | Garrison Relay disabled 8750 | -7/Garrison | Entered Factory 8750 | -7/Factory | Accompanied by 2 allies 8936 | -7/Factory | Discovered exit to Factory (range 11) 8998 | -7/Factory | X0-1V1 activates XOMVISION 9280 | -7/Factory | Identified exit to Lower Caves 9280 | -7/Factory | X0-1V1 revealed exit location to -7/Lower Caves 9579 | -7/Factory | Discovered exit to Factory (range 14) 9672 | -7/Factory | Identified exit to Garrison 9672 | -7/Factory | Entered Garrison 9740 | -7/Garrison | Triggered checkpoint 9799 | -7/Garrison | System corruption reached 10% 9922 | -7/Garrison | Core integrity restored by X0-1V1 (+125) 9947 | -7/Garrison | Garrison Relay disabled 9987 | -7/Garrison | Expanded RIF knowledge: Program Shield 10010 | -7/Garrison | X0-1V1 activates XOMVISION 10193 | -7/Garrison | Lost 3 parts (1p1n1w) 10235 | -7/Garrison | X0-1V1 mutated your Weapon slot to Utility slot 10261 | -7/Garrison | Build established: Bothacker-Mutant 10346 | -7/Garrison | Triggered checkpoint 10422 | -7/Garrison | Discovered exit to Factory (range 9) 10466 | -7/Garrison | Triggered checkpoint 10563 | -7/Garrison | Expanded RIF knowledge: Patrol Navigation 10574 | -7/Garrison | Garrison Relay disabled 10618 | -7/Garrison | Expanded RIF knowledge: Hotswap 10810 | -7/Garrison | Discovered exit to Factory (range 13) 10848 | -7/Garrison | Triggered checkpoint 10863 | -7/Garrison | Garrison Relay disabled 10887 | -7/Garrison | Build established: Botlord-Mutant 10910 | -7/Garrison | Discovered exit to Factory (range 22) 10910 | -7/Garrison | Discovered exit to Factory (range 58) 10910 | -7/Garrison | Discovered exit to Factory (range 36) 11000 | -7/Garrison | Entered Factory 11000 | -6/Factory | Accompanied by 1 ally 11000 | -6/Factory | Evolved 2 slots: Propulsion x1, Utility x1 11033 | -6/Factory | Identified exit to Lower Caves 11033 | -6/Factory | Identified exit to Extension 11106 | -6/Factory | X0-1V1 redirected Transport squads to designated parking area 11422 | -6/Factory | Identified exit to Factory 11422 | -6/Factory | X0-1V1 revealed exit location to -5/Factory 11431 | -6/Factory | X0-1V1 sent you to a vault 11442 | -6/Factory | Found Prototype Device 11442 | -6/Factory | Identified Skeleton Box 11645 | -6/Factory | Entered Extension 11829 | -6/Extension | Rescued a captive Derelict 11830 | -6/Extension | Rescued a captive Derelict 11841 | -6/Extension | Lost 3 allies 11850 | -6/Extension | Rescued a captive Derelict 11947 | -6/Extension | Rescued a captive Derelict 11948 | -6/Extension | Rescued a captive Derelict 11988 | -6/Extension | Rescued a captive Derelict 11990 | -6/Extension | Rescued a captive Derelict 12040 | -6/Extension | Rescued a captive Derelict 12102 | -6/Extension | Rescued a captive Derelict 12103 | -6/Extension | Rescued a captive Derelict 12111 | -6/Extension | Lost 4 allies 12265 | -6/Extension | X0-1V1 rewrote TS-B2H(g) IFF filter 12365 | -6/Extension | X0-1V1 sent you into danger 12499 | -6/Extension | Spotted B-75 Beast 12516 | -6/Extension | Allies destroyed B-75 Beast 12530 | -6/Extension | Spotted B-75 Beast 12535 | -6/Extension | X0-1V1 whisked you away to safety 12565 | -6/Extension | Lost 4 allies 12693 | -6/Extension | X0-1V1 sent allied Ranger (x2) 12704 | -6/Extension | Allies destroyed B-75 Beast 12940 | -6/Extension | Build established: Bothacker-Mutant 12991 | -6/Extension | Rescued a captive Derelict 13010 | -6/Extension | X0-1V1 sent hostile X-62 Marksman (x2) 13017 | -6/Extension | X0-1V1 upgraded ally (x1) 13018 | -6/Extension | Weapon slot count temporarily expanded by X0-1V1 (+3) 13160 | -6/Extension | Lost 6 parts (3n2u1w) 13372 | -6/Extension | Rescued A7 13429 | -6/Extension | Rescued a captive Derelict 13430 | -6/Extension | Rescued a captive Derelict 13436 | -6/Extension | Build established: Scavenger-Tank 13664 | -6/Extension | X0-1V1 foreshadows a heat wave 13711 | -6/Extension | X0-1V1 added 0b10 threat records associated with you (major) 13748 | -6/Extension | Discovered exit to Factory (range 10) 13750 | -6/Extension | Discovered new exit (range 6) 13758 | -6/Extension | Identified exit to Cetus 13779 | -6/Extension | Entered Cetus 13779 | -6/Cetus | Accompanied by 10 allies (A7) 13784 | -6/Cetus | Acquired a Cetus Manufacturing Module code from A7 13802 | -6/Cetus | Spotted Cetus Guard 13802 | -6/Cetus | Spotted Cetus Guard 13806 | -6/Cetus | Spotted Cetus Guard 13810 | -6/Cetus | Spotted Cetus Guard 13817 | -6/Cetus | Destroyed Cetus Guard 13831 | -6/Cetus | Allies destroyed Cetus Guard 13831 | -6/Cetus | Allies destroyed Cetus Guard 13844 | -6/Cetus | Destroyed Cetus Guard 13856 | -6/Cetus | Lost 4 allies 13984 | -6/Cetus | Started Cetus Manufacturing Module 13986 | -6/Cetus | X0-1V1 opened Sealed Heavy Doors 13992 | -6/Cetus | X0-1V1 vaporized surrounding terrain (radius 23) 14001 | -6/Cetus | X0-1V1 mutated your Utility slot to Propulsion slot 14009 | -6/Cetus | Manufactured an Enhanced Grunt 14034 | -6/Cetus | Manufactured an Enhanced Grunt 14059 | -6/Cetus | Manufactured an Enhanced Grunt 14084 | -6/Cetus | Manufactured an Enhanced Grunt 14109 | -6/Cetus | Manufactured an Enhanced Grunt 14109 | -6/Cetus | Build established: Scavenger-Mutant 14218 | -6/Cetus | Discovered new exit (range 16) 14251 | -6/Cetus | Spotted Cetus Guard 14252 | -6/Cetus | Spotted Cetus Guard 14255 | -6/Cetus | Spotted Cetus Guard 14259 | -6/Cetus | Spotted Cetus Guard 14268 | -6/Cetus | Allies destroyed Cetus Guard 14270 | -6/Cetus | Allies destroyed Cetus Guard 14272 | -6/Cetus | Allies destroyed Cetus Guard 14274 | -6/Cetus | Allies destroyed Cetus Guard 14281 | -6/Cetus | Discovered exit to Factory (range 15) 14298 | -6/Cetus | Met Revision 17 14365 | -6/Cetus | X0-1V1 added 0b10 threat records associated with you (major) 14412 | -6/Cetus | Murdered A7 14413 | -6/Cetus | Extracted ID and sensor layout for unrecognized location from A7's data core 14448 | -6/Cetus | Identified exit to Archives 14459 | -6/Cetus | Entered Archives 14459 | -6/Archives | Accompanied by 7 allies 14537 | -6/Archives | Discovered new exit (range 15) 14559 | -6/Archives | Identified exit to Hub_04(d) 14600 | -6/Archives | Entered Hub_04(d) 14600 | -6/Hub_04(d) | Accompanied by 5 allies 14640 | -6/Hub_04(d) | Network Hub disabled 14653 | -6/Hub_04(d) | Network Hub disabled 14805 | -6/Hub_04(d) | Garrison activated, responded to threat 14820 | -6/Hub_04(d) | Identified exit to Garrison 14820 | -6/Hub_04(d) | Entered Garrison 14820 | -6/Garrison | Accompanied by 2 allies 14850 | -6/Garrison | Lost 3 allies 14862 | -6/Garrison | Triggered checkpoint 14863 | -6/Garrison | Spotted B-75 Beast 14865 | -6/Garrison | Core integrity fell below 50% 14880 | -6/Garrison | Destroyed B-75 Beast 14913 | -6/Garrison | Found Prototype Device 14913 | -6/Garrison | Identified Exp. Thermal Shield 14938 | -6/Garrison | X0-1V1 sent hostile G-50 Soldier (x5) 15127 | -6/Garrison | Garrison Relay disabled 15216 | -6/Garrison | Triggered checkpoint 15247 | -6/Garrison | Spotted B-75 Beast 15312 | -6/Garrison | X0-1V1 upgraded hostiles (x1) 15343 | -6/Garrison | Destroyed B-75 Beast 15368 | -6/Garrison | Core integrity fell below 20% 15370 | -6/Garrison | Lost 4 parts (1p1n2u) 15372 | -6/Garrison | Spotted Executioner 15374 | -6/Garrison | Spotted Executioner 15389 | -6/Garrison | Destroyed Executioner 15415 | -6/Garrison | Destroyed Executioner 15437 | -6/Garrison | Lost 4 parts (2n1u1w) 15480 | -6/Garrison | Found Prototype Processor 15667 | -6/Garrison | X0-1V1 mutated your Propulsion slot to Weapon slot 15696 | -6/Garrison | Triggered checkpoint 15733 | -6/Garrison | Garrison Relay disabled 15778 | -6/Garrison | Triggered checkpoint 15810 | -6/Garrison | Discovered exit to Factory (range 15) 15833 | -6/Garrison | Entered Factory 15833 | -5/Factory | Evolved 2 slots: Utility x2 15833 | -5/Factory | Identified Exp. Core Analyzer 15911 | -5/Factory | X0-1V1 released a cloud of subatomizers 15956 | -5/Factory | Build established: Scavenger-Tank 16138 | -5/Factory | X0-1V1 downgraded hostiles (x1) 16149 | -5/Factory | X0-1V1 sent allied Y-64 Sentinel (x4) 16215 | -5/Factory | X0-1V1 redirected Transport squads to designated parking area 16315 | -5/Factory | Identified exit to Upper Caves 16336 | -5/Factory | Discovered new exit (range 15) 16356 | -5/Factory | Identified exit to Factory 16367 | -5/Factory | X0-1V1 activates XOMVISION 16402 | -5/Factory | X0-1V1 announced a LAN party 16518 | -5/Factory | Garrison activated, responded to threat 16565 | -5/Factory | Lost 4 allies 16578 | -5/Factory | Destroyed 15 combat bots 16626 | -5/Factory | Lost 12 parts (2p4n3u3w) 16667 | -5/Factory | Sterilization system engaged 16667 | -5/Factory | Non-combat units ordered to evacuate 16767 | -5/Factory | Combat units ordered to evacuate 16871 | -5/Factory | Crushed by falling debris 16876 | -5/Factory | Build established: Scavenger-Mutant 16901 | -5/Factory | Core integrity fell below 50% 16906 | -5/Factory | Released all parts (5) 16908 | -5/Factory | Core integrity fell below 20% 16910 | -5/Factory | Entered Upper Caves 16929 | -5/Upper Caves | Lost 10 parts (2p4n1u3w) 16954 | -5/Upper Caves | X0-1V1 sent you into danger 16955 | -5/Upper Caves | Attracted the attention of an 0b10 checkpoint 16995 | -5/Upper Caves | Encountered a Warlord checkpoint 17025 | -5/Upper Caves | Discovered new exit (range 7) 17028 | -5/Upper Caves | Core integrity restored by X0-1V1 (+175) 17029 | -5/Upper Caves | Entered another Upper Caves area 17192 | -5/Upper Caves | X0-1V1 sent you into danger 17199 | -5/Upper Caves | Attracted the attention of an 0b10 checkpoint 17205 | -5/Upper Caves | Build established: Mutant 17207 | -5/Upper Caves | Core integrity restored by X0-1V1 (+153) 17241 | -5/Upper Caves | Discovered new exit (range 8) 17243 | -5/Upper Caves | Entered Zhirov 17243 | -5/Zhirov | Discovered new exit (range 3) 17250 | -5/Zhirov | Met Zhirov 17259 | -5/Zhirov | Learned location of Quarantine (-2) 17259 | -5/Zhirov | Learned location of Testing (-3) 17259 | -5/Zhirov | Learned location of Command (-1) 17262 | -5/Zhirov | Zhirov requested help retrieving the SGEMP Prototype 17267 | -5/Zhirov | Found Alien Artifact 17267 | -5/Zhirov | Identified Integrated Dissipator 17267 | -5/Zhirov | Installed Integrated Dissipator, increased core heat dissipation (+20) 17273 | -5/Zhirov | Found Alien Artifact 17575 | -5/Zhirov | Entered Proximity Caves 17588 | -4/Proximity Caves | Sensors blinded by X0-1V1 17605 | -4/Proximity Caves | Spotted B-86 Titan 17651 | -4/Proximity Caves | X0-1V1 revealed exit location to -4/Factory 17707 | -4/Proximity Caves | X0-1V1 activates XOMVISION 17824 | -4/Proximity Caves | Attracted the attention of an 0b10 checkpoint 17890 | -4/Proximity Caves | Entered Factory 17890 | -4/Factory | Evolved 2 slots: Propulsion x1, Utility x1 17910 | -4/Factory | X0-1V1 announced a LAN party 17967 | -4/Factory | Discovered new exit (range 8) 17967 | -4/Factory | X0-1V1 sent you into danger 18013 | -4/Factory | System corruption reached 10% 18153 | -4/Factory | Discovered new exit (range 7) 18155 | -4/Factory | Identified exit to Upper Caves 18172 | -4/Factory | Discovered new exit (range 11) 18231 | -4/Factory | Core integrity restored by X0-1V1 (+155) 18266 | -4/Factory | X0-1V1 sent you to a vault 18268 | -4/Factory | Found Prototype Slashing Weapon 18268 | -4/Factory | Identified Hvy. Scimitar of Distortion 18494 | -4/Factory | X0-1V1 tapped a No Entrance sign 18532 | -4/Factory | X0-1V1 redirected Transport squads to designated parking area 18609 | -4/Factory | X0-1V1 enhanced Transport squad support 18658 | -4/Factory | Manually triggered Chute Trap 18658 | -4/Factory | Sucked down chute 18658 | -4/Factory | Entered Waste 18684 | -4/Waste | Spotted C-40 Crusher 18741 | -4/Waste | Spotted C-40 Crusher 18760 | -4/Waste | Spotted C-40 Crusher 18768 | -4/Waste | Spotted C-40 Crusher 18774 | -4/Waste | Spotted C-40 Crusher 18777 | -4/Waste | Spotted C-40 Crusher 18796 | -4/Waste | Discovered new exit (range 22) 18797 | -4/Waste | X0-1V1 reactivated EMP system 18802 | -4/Waste | Build established: Ninja 18803 | -4/Waste | Identified exit to Factory 18803 | -4/Waste | Entered Factory 18813 | -4/Factory | Spotted B-86 Titan 18814 | -4/Factory | Watched by a mysterious "MATRIX" hacker 18864 | -4/Factory | Identified exit to Research 18924 | -4/Factory | Repaired Broken Cmb. Linear Gravjet 18938 | -4/Factory | X0-1V1 announced a LAN party 18968 | -4/Factory | X0-1V1 sent you into danger 19050 | -4/Factory | X0-1V1 added 0b10 threat records associated with you (major) 19053 | -4/Factory | Search patrols dispatched 19064 | -4/Factory | X0-1V1 sent you into danger 19137 | -4/Factory | Found Prototype Launcher 19184 | -4/Factory | Lost 7 parts (1p3n2u1w) 19242 | -4/Factory | Core integrity fell below 50% 19242 | -4/Factory | Entered Research 19242 | -3/Research | Evolved 2 slots: Propulsion x1, Utility x1 19269 | -3/Research | Lost 3 parts (1n1u1w) 19392 | -3/Research | Sensors blinded by X0-1V1 19442 | -3/Research | Revision forces began assault on 0b10 19512 | -3/Research | X0-1V1 sent hostile X-77 Beamer (x2) 19514 | -3/Research | Met up with Revision 17++ 19569 | -3/Research | Identified Com. Tesla Bomb Launcher 19630 | -3/Research | Identified exit to Testing 19877 | -3/Research | Build established: Scout 19894 | -3/Research | Discovered new exit (range 17) 19895 | -3/Research | Entered Testing 19943 | -3/Testing | Found Prototype Energy Gun 19943 | -3/Testing | Identified Tachyon Dispersion Ray 19955 | -3/Testing | Found Prototype Energy Gun 19955 | -3/Testing | Identified Hyp. EM Gauss Rifle 19996 | -3/Testing | X0-1V1 sent you to a vault 20028 | -3/Testing | X0-1V1 activates XOMVISION 20034 | -3/Testing | Spotted Superbehemoth 20088 | -3/Testing | Identified exit to Research 20088 | -3/Testing | X0-1V1 revealed exit location to -2/Research 20098 | -3/Testing | Found Prototype Energy Cannon 20098 | -3/Testing | Identified Disintegrator 20149 | -3/Testing | Rewired PX-DXZX0HBA1B 20286 | -3/Testing | X0-1V1 activates XOMVISION 20329 | -3/Testing | Build established: Ninja 20373 | -3/Testing | X0-1V1 sent allied Elite (x4) 20415 | -3/Testing | P-80 Master assimilated allied NA-QUG(E) 20492 | -3/Testing | Found Prototype Protection 20498 | -3/Testing | Entered Research 20498 | -2/Research | Evolved 2 slots: Power x1, Utility x1 20499 | -2/Research | Identified SHELL Armor 20512 | -2/Research | X0-1V1 redirected Transport squads to designated parking area 20574 | -2/Research | Sensors blinded by X0-1V1 20625 | -2/Research | X0-1V1 enhanced Transport squad support 20685 | -2/Research | Destroyed 7 combat bots 20725 | -2/Research | Discovered new exit (range 17) 20740 | -2/Research | Identified exit to Access 20768 | -2/Research | Entered Access 20768 | -1/Access | Evolved 2 slots: Propulsion x1, Utility x1 20781 | -1/Access | Identified exit to Command 20795 | -1/Access | Lost 3 parts (1p1n1w) 20978 | -1/Access | P-80 Master assimilated allied Conveyor 10a 20991 | -1/Access | X0-1V1 destroyed Energy Cycler 20991 | -1/Access | Energy Cycler disabled 21154 | -1/Access | X0-1V1 sent hostile B-74 Champion (x3) 21246 | -1/Access | Build established: Scientist-Ninja 21256 | -1/Access | Discovered new exit (range 6) 21258 | -1/Access | Identified exit to Surface 21258 | *** | Escaped! Last Messages --------------- 21211_ U-05 Engineer lays Concrete. 21213_ Slug penetrates S-43 Plague. 21213_ S-43 Plague destroyed. 21213_ U-05 Engineer lays Concrete. 21217_ The unstable cave ceiling collapses. 21217_ Acquired Hvy. Machine Gun. 21217_ U-05 Engineer lays Concrete. 21219_ Acquired 34 matter. 21219_ Acquired Lgt. Antimatter Reactor+. 21220_ U-05 Engineer lays Concrete. 21221_ Acquired 39 matter. 21222_ U-05 Engineer lays Concrete. 21222_ Acquired Lgt. Antimatter Reactor+. 21223_ U-05 Engineer lays Concrete. 21234_ X0-1V1: "I had everything to do with that." 21234_ U-05 Engineer lays Concrete. 21239_ U-05 Engineer builds a Wall. 21256_ The Access Shell folds into the floor. 21256_ EXIT=FOUND 21258_ EXIT=IDENTIFIED: SURFACE Map ----- +----------------------------------------------------+ | #?? ?????????????????????????????????????????? | | #? ??????????????????????????????????????????? | | # ???????????????????????????????????????????? | | # ????????????????????????????????????????????? | | +?????????????????????????????????????????????? | | #?????????????????????????????????????????????? | | #?????????????????????????????????????????????? | | #?????????????????????????????????????????????? | | #?????????????????????????????????????????????? | | #?????????????????????????????????????????????? | | #############?????????????????????????????????? | | ???????????????????????????????? | | ???????????????????????????????? | | #???????????????????????????????????? | | ########### #???????????????????????????????????? | | ??????????# #???????????????????????????????????? | | ??????????# #???????????????????????????????????? | | ??????????# #???????????????????????????????????? | | ??????????# #?????###???????????????????????????? | | ??????????# ####### ##########??????????????????? | | ??????????# """T""" "??????????????????? | | ########### """ """ "????BB????????????? | | ; ; "????BB????????????? | | ### "??????????????????? | | #?# "" "??????????????????? | | #?# @" "??????????????????? | | #?# "??????????????????? | | #?# "????BB????????????? | | #?# "????BB????????????? | | = #?# "??????????????????? | | "" #?# ####### ##########??????????????????? | | """" #?# #?????###???????????????????????????? | | """" #?# #???????????????????????????????????? | | """" #?# #???????????????????????????????????? | | """" #?# #???????????????????????????????????? | | """" #?# #???????????????????????????????????? | | "? #?# #???????????????????????????????????? | | "? #?# #???????????????????????????????????? | | #+##?####?" #???????????????????????????????????? | | ??????? H ???????????????????????????????????? | | ??????? ???????????????????????????????????? | | ??????? ???????????????????????????????????? | | ??????? ???????????????????????????????????? | | ######### #???????????????????????????????????? | | # #??????????????????????????????????????? | | # # ############### ?????????????????? | | + # #?????????????# ?????????????????? | | # # ############### ?????????????????? | | # # # ?????????????????? | | # # + ?????????????????? | +----------------------------------------------------+ Best States ------------- Heat Dissipation 190 Energy Generation 54 Energy Capacity 1590 Matter Stores 448 Matter Capacity 700 Sight Range 26 Robot Scan Range 18 Terrain Scan Density 10 ECM Strength 1 Jamming Range 16 Additional Mass Support 12 EM Shielding 2 Armor Coverage 900 Resistance: KI 21 Resistance: TH 30 Utility Shielding 90 Weapon Shielding 66 Weapon Cycling 20 Phase Shifting 5 Evasion (%) 68 Targeting Accuracy 8 Core Analysis 8 Recoil Reduction 6 Particle Charging 25 Offensive Hacking 14 Relay Coupler Types 3 Relay Coupler Value 114 Item Schematics ----------------- Assault Drone Bay | -5/Zhirov | Free Exp. Heat Sink | -5/Zhirov | Free Exp. Optical Array | -5/Zhirov | Free Imp. Arc Thrower | -5/Zhirov | Free Cmb. Linear Gravjet | -4/Factory | Hacked Shock Maul | -3/Testing | Archive Exp. Thermal Shield | -3/Testing | Archive Hvy. Hardcell Cannon | -3/Testing | Archive Robot Schematics ------------------ None Fabricated ------------ Nothing Repaired ---------- Cmb. Linear Gravjet | 63% | -4/Factory | Broken Studied --------- Hvy. Assault Rifle | -9/Materials | Hacked Lgt. Treads | -9/Materials | Hacked Lgt. Nuclear Core | -8/Materials | Hacked Lgt. Antimatter Reactor | -5/Factory | Hacked KE Penetrator | -5/Factory | Hacked Imp. Gyrokinetic Inverter | -3/Research | Hacked Railgun | -3/Research | Hacked Mic. Antimatter Reactor | -1/Access | Hacked Alien Tech Used ----------------- Integrated Dissipator Achievements -------------- Into The Furnace Challenges ------------ None Game ------ Seed GraphenePulseMatterbank Manual? 0 Play Time 05:17:13 Cumulative 597.6 hours Start 2026.08.23 @ 08:22:24 End 2026.08.25 @ 07:48:54 Sessions 7 Manual Loads 0 Difficulty Rogue Special Mode None Game No. 204 Rogue 183 Adventurer 21 Explorer 0 Win Type 0 Total 32 Types 18/2/7/1/0/0/0/3/0/1 Lore% 48 Gallery% 70 Achievement% 70 Wizard Run 0 Options --------- Layout 1 ASCII 0 Keyboard 0 Movement Mouse Keybinds 0 Fullscreen 2 Font 32/SmallcapsGlow Map View 77x35 Zoom Use 0% Tactical HUD 1 Map Filters NONE Filters NONE Steam 1 RUN: 6487190a-56e6-4d55-901f-177dc19d5e70